Workbook

Sheet Index
A1: Number | B1: Essay's Title | C1: Magazine Reference | D1: Essay [Adobe Acrobat] | E1: Workbook | F1: Negative | G1: Earth | H1: Galaxy | I1: Universe | J1: K/Ar | K1: 40Ar/39Ar | L1: Re/Os | M1: Pb 207 | N1: Th-232 | O1: U-235 | P1: U-238 | Q1: Sm/Nd | R1: Rb/Sr
A2: 1 | B2: Re–Os Isotopes of the Parana Continental Flood Basalts | C2: Earth And Planetary Science Letters, Volume 337–338, 2012, Pages 164–173 | D2: C:\Essays\Geo_Dating\Good\GOOD_A.pdf | E2: GOOD_A | G2: 14 | M2: 14
A3: 2 | B3: Insights from Dike Geochemistry | C3: Journal Of Petrology, Volume 0, Number 0, Pages 1-29, 2010 | D3: C:\Essays\Geo_Dating\Good\GOOD_B.pdf | E3: GOOD_B | G3: 80 | M3: 80
A4: 3 | D4: C:\Essays\Geo_Dating\Good\GOOD_C.pdf | E4: GOOD_C
A5: 4 | B5: Evidence From Sr–Nd–Pb Isotopic Systematics | C5: Geology Magazine, Volume 141, Number 1, 2004, Pages 55–62 | D5: C:\Essays\Geo_Dating\Good\GOOD_D.pdf | E5: GOOD_D
A6: 5 | B6: Lu-Hf and U-Pb Isotopic Studies | C6: Geochimica Et Cosmochimica Acta, Volume 64, Number 24, Pages 4205–4225, 2000 | D6: C:\Essays\Geo_Dating\Good\GOOD_E.pdf | E6: GOOD_E
A7: 6 | B7: Siberian Meimechites and Kimberlites | C7: Geochemistry, Geophysics And Geosystems, Volume 7, Number 11, 2006 | D7: C:\Essays\Geo_Dating\Good\GOOD_F.pdf | E7: GOOD_F
A8: 7 | B8: East Mariana Basin Tholeiites | C8: Earth And Planetary Science Letters, Volume 123, 1994, Pages 139-154 | D8: C:\Essays\Geo_Dating\Good\GOOD_G.pdf | E8: GOOD_G
A9: 8 | B9: Mantle Xenoliths from intracratonic Eastern Paraguay | C9: http://ees.elsevier.com/lithos/download.aspx?id=48550&guid=fd055aeb-90c3-4095-a14c-c91a93e48fa5&scheme=1 | D9: C:\Essays\Geo_Dating\Good\GOOD_H.pdf | E9: GOOD_H
A10: 9 | B10: Trace Element and Pb Isotopic Evidence | C10: Geochemistry, Geophysics And Geosystems, Volume 1, February 14, 2000 | D10: C:\Essays\Geo_Dating\Good\GOOD_I.pdf | E10: GOOD_I
A11: 10 | B11: Evolution of the Solonker Suture Zone | C11: Journal Of Asian Earth Sciences, Volume 34, 2009, Pages 245–257 | D11: C:\Essays\Geo_Dating\Good\GOOD_J.pdf | E11: GOOD_J
A12: 11 | B12: Lavas and their Mantle Xenoliths | C12: DOI 10.1007/S00710-009-0061-6 | D12: C:\Essays\Geo_Dating\Good\GOOD_K.pdf | E12: GOOD_K
A13: 12 | B13: Geochemical portray of the Paciﬁc Ridge | C13: Earth And Planetary Science Letters, Volume 302, 2011, Pages 154–162 | D13: C:\Essays\Geo_Dating\Good\GOOD_L.pdf | E13: GOOD_L
A14: 13 | B14: Chronology and Geochemistry of Lavas | C14: Journal Of Petrology, Volume 0, Number 0, Pages 1-32, 2012 | D14: C:\Essays\Geo_Dating\Good\GOOD_M.pdf | E14: GOOD_M
A15: 14 | B15: Isotopic (Sr, Nd, Pb, and Os) Composition | C15: Chemical Geology, Volume 277, 2010, Pages 227–244 | D15: C:\Essays\Geo_Dating\Good\GOOD_N.pdf | E15: GOOD_N
A16: 15 | B16: U–Pb Geochronology | C16: Chemical Geology, Volume 167, 2000, Pages 405–425 | D16: C:\Essays\Geo_Dating\Good\GOOD_O.pdf | E16: GOOD_O
A17: 16 | B17: Genesis of Plio-Pleistocene Volcanic Rocks | C17: Earth And Planetary Science Letters ,Volume 180, 2000, Pages 259-270 | D17: C:\Essays\Geo_Dating\Good\GOOD_P.pdf | E17: GOOD_P
A18: 17 | B18: Trans-North China Orogen: U-Pb Dating | C18: Journal Of Petrology, Volume 51, Numbers 1 & 2, Pages 537-571, 2010 | D18: C:\Essays\Geo_Dating\Good\GOOD_Q.pdf | E18: GOOD_Q
A19: 18 | B19: Isotope Evidence for Recycled Oceanic Crust | C19: Journal Of Petrology, Page 1 Of 45, Doi:10.1093/petrology/egl025 | D19: C:\Essays\Geo_Dating\Good\GOOD_R.pdf | E19: GOOD_R
A20: 19 | B20: 100 million years of mantle geochemical history | C20: Earth and Planetary Science Letters, 2008, doi:10.1016/j.epsl.2008.08.023 | D20: C:\Essays\Geo_Dating\Good\GOOD_S.pdf | E20: GOOD_S
F21: =SUM(F2:F20) -> 0 | G21: 94 | H21: 0 | I21: 0 | J21: 0 | K21: 0 | L21: 0 | M21: 94 | N21: 0 | O21: 0 | P21: 0 | Q21: 0 | R21: =SUM(R2:R20) -> 0

Sheet Good_A
A1: Sample | B1: 206Pb/204Pb | C1: 207Pb/204Pb | D1: 207Pb/206Pb | E1: 207Pb/206Pb | F1: 187Re/188Os | G1: Pb Versus Re | H1: Pb Versus Re
A2: Number | B2: Ratio | C2: Ratio | D2: Ratio | E2: Age | F2: Age | G2: Age Ratio | H2: Age Difference
A3: B-208 | B3: 18.32876 | C3: 15.63577 | D3: =(C3/B3) -> 0.8530729848 | E3: =[1]!AgePb76(D3) -> 5013.03487 | F3: 139 | G3: =(E3/F3) -> 36.06499907 | H3: =(E3-F3) -> 4874.03487
A4: B-448 | B4: 18.41376 | C4: 15.61777 | D4: =(C4/B4) -> 0.8481575735 | E4: =[1]!AgePb76(D4) -> 5004.836387 | F4: 135 | G4: =(E4/F4) -> 37.07286213 | H4: =(E4-F4) -> 4869.836387
A5: B-3064 | B5: 18.37976 | C5: 15.61377 | D5: 0.8495089163 | E5: =[1]!AgePb76(D5) -> 5007.09533 | F5: 139 | G5: 36.02226856 | H5: 4868.09533
A6: B-3006 | B6: 18.44276 | C6: 15.62577 | D6: 0.8472576773 | E6: =[1]!AgePb76(D6) -> 5003.329974 | F6: 138 | G6: 36.2560143 | H6: 4865.329974
A7: B-418 | B7: 18.38776 | C7: 15.60977 | D7: 0.8489217828 | E7: =[1]!AgePb76(D7) -> 5006.114331 | F7: 133 | G7: 37.63995737 | H7: 4873.114331
A8: B-509 | B8: 18.36778 | C8: 15.63678 | D8: 0.8513157279 | E8: =[1]!AgePb76(D8) -> 5010.109692 | F8: 142 | G8: 35.28246262 | H8: 4868.109692
A9: KS-624 | B9: 17.88971 | C9: 15.54671 | D9: 0.8690308563 | E9: =[1]!AgePb76(D9) -> 5039.309548 | F9: 136 | G9: 37.05374667 | H9: 4903.309548
A10: KS-660 | B10: 17.88774 | C10: 15.51374 | D10: 0.8672834019 | E10: =[1]!AgePb76(D10) -> 5036.457439 | F10: 139 | G10: 36.23350675 | H10: 4897.457439
A11: KS-685 | B11: 17.90774 | C11: 15.53773 | D11: 0.8676544332 | E11: =[1]!AgePb76(D11) -> 5037.063528 | F11: 140 | G11: 35.9790252 | H11: 4897.063528
A12: KS-700 | B12: 17.88273 | C12: 15.53272 | D12: 0.868587738 | E12: =[1]!AgePb76(D12) -> 5038.586888 | F12: 138 | G12: 36.51149919 | H12: 4900.586888
A13: FL-98 | B13: 17.90972 | C13: 15.53671 | D13: 0.8675015578 | E13: =[1]!AgePb76(D13) -> 5036.813835 | F13: 133 | G13: 37.87078072 | H13: 4903.813835
A14: TR-7 | B14: 18.541 | C14: 15.533 | D14: 0.8377649533 | E14: =[1]!AgePb76(D14) -> 4987.334973 | F14: 9.7 | G14: 514.1582447 | H14: 4977.634973
A15: TR-6 | B15: 18.534 | C15: 15.546 | D15: 0.8387827776 | E15: =[1]!AgePb76(D15) -> 4989.059173 | F15: 9.4 | G15: 530.7509759 | H15: 4979.659173
A16: TR-1 | B16: 18.534 | C16: 15.546 | D16: 0.8387827776 | E16: =[1]!AgePb76(D16) -> 4989.059173 | F16: 5 | G16: 997.8118347 | H16: 4984.059173
A20: Earth And Planetary Science Letters,
A21: Volume 337–338,
A22: 2012, Pages 164–173

Sheet Good_B
A1: Table 2 | G1: Table 2: | AC1: 4749
A2: Sample | B2: (87Sr/86Sr)o | C2: (87Sr/86Sr)t | D2: (143Nd/144Nd)o | E2: (143Nd/144Nd)t | F2: 206Pb/204Pb | G2: 207Pb/204Pb | H2: 207Pb/206Pb | I2: 207Pb/206Pb, Age | L2: Rubidium | M2: Table 2 | V2: Table 2 | AC2: 4770
A3: Tem-04 | B3: 0.70858 | C3: 0.70844 | D3: 0.512265 | E3: 0.512199 | F3: 18.923 | G3: 15.553 | H3: =(G3/F3) -> 0.8219098452 | I3: =[1]!AgePb76(H3) -> 4960.185145 | L3: Strontium | M3: Initial | N3: Today | O3: Today | P3: The Ratio | Q3: Half | R3: Decay | S3: 2.303/Delta | T3: Age | U3: Age | V3: Age | AC3: 4791
A4: M-8 | B4: 0.70903 | C4: 0.70881 | D4: 0.512066 | E4: 0.512004 | F4: 18.299 | G4: 15.425 | H4: =(G4/F4) -> 0.8429422373 | I4: =[1]!AgePb76(H4) -> 4996.082293 | L4: Dating | M4: 87Sr/86Sr | N4: 87Sr/86Sr | O4: 87Rb/86Sr | P4: Plus One | Q4: Life | R4: Constant | S4: Constant | T4: Years | U4: Million Years | V4: Billion Years | AC4: 4813
A5: JEB-434 | B5: 0.72267 | C5: 0.72236 | D5: 0.511829 | E5: 0.511766 | F5: 20.938 | G5: 16.08 | H5: 0.7679816601 | I5: =[1]!AgePb76(H5) -> 4863.485121 | M5: 0.70844 | N5: 0.70858 | O5: 0.1565 | P5: =1+((N5-M5)/O5) -> 1.000894569 | Q5: 48800000000 | R5: =(0.693/Q5) -> 1.420081967e-11 | S5: =(2.303/R5) -> 1.621737374e+11 | T5: =(LOG(P5))*(S5) -> 62977345.29 | U5: =(T5/1000000) -> 62.97734529 | V5: =(U5/1000) -> 0.06297734529 | AC5: 4830
A6: M-12 | B6: 0.70777 | C6: 0.70768 | D6: 0.512591 | E6: 0.512518 | F6: 19.707 | G6: 15.749 | H6: 0.7991576597 | I6: =[1]!AgePb76(H6) -> 4920.236088 | M6: 0.70881 | N6: 0.70903 | O6: 0.2375 | P6: =1+((N6-M6)/O6) -> 1.000926316 | Q6: 48800000000 | R6: 1.420081967e-11 | S6: =(2.303/R6) -> 1.621737374e+11 | T6: =(LOG(P6))*(S6) -> 65211296.42 | U6: =(T6/1000000) -> 65.21129642 | V6: =(U6/1000) -> 0.06521129642 | AC6: 4855
A7: M-13 | B7: 0.70753 | C7: 0.70746 | D7: 0.512607 | E7: 0.512539 | F7: 19.863 | G7: 15.746 | H7: 0.7927302019 | I7: =[1]!AgePb76(H7) -> 4908.731086 | M7: 0.72236 | N7: 0.72267 | O7: 0.3441 | P7: =1+((N7-M7)/O7) -> 1.000900901 | Q7: 48800000000 | R7: =(0.693/Q7) -> 1.420081967e-11 | S7: =(2.303/R7) -> 1.621737374e+11 | T7: =(LOG(P7))*(S7) -> 63422930.22 | U7: =(T7/1000000) -> 63.42293022 | V7: =(U7/1000) -> 0.06342293022 | AC7: 4863
A8: CH-24 | B8: 0.70774 | C8: 0.70768 | D8: 0.512506 | E8: 0.512439 | F8: 20.851 | G8: 15.922 | H8: 0.76360846 | I8: =[1]!AgePb76(H8) -> 4855.328609 | M8: 0.70768 | N8: 0.70777 | O8: 0.0925 | P8: 1.000972973 | Q8: 48800000000 | R8: 1.420081967e-11 | S8: 1.621737374e+11 | T8: 68494298.26 | U8: 68.49429826 | V8: 0.06849429826 | AC8: 4864
A9: KOP-21 | B9: 0.70754 | C9: 0.70751 | D9: 0.512383 | E9: 0.512324 | F9: 18.041 | G9: 15.479 | H9: 0.8579901336 | I9: =[1]!AgePb76(H9) -> 5021.186212 | M9: 0.70746 | N9: 0.70753 | O9: 0.0767 | P9: 1.000912647 | Q9: 48800000000 | R9: 1.420081967e-11 | S9: 1.621737374e+11 | T9: 64249449.27 | U9: 64.24944927 | V9: 0.06424944927 | AC9: 4872
A10: BOR-4 | B10: 0.70732 | C10: 0.7071 | D10: 0.512462 | E10: 0.51239 | F10: 18.263 | G10: 15.517 | H10: 0.8496413514 | I10: =[1]!AgePb76(H10) -> 5007.316507 | M10: 0.70768 | N10: 0.70774 | O10: 0.0702 | P10: 1.000854701 | Q10: 48800000000 | R10: 1.420081967e-11 | S10: 1.621737374e+11 | T10: 60171861.2 | U10: 60.1718612 | V10: 0.0601718612 | AC10: 4876
A11: DDW-13 | B11: 0.70967 | C11: 0.70946 | D11: 0.511981 | E11: 0.51192 | F11: 17.076 | G11: 15.439 | H11: 0.9041344577 | I11: =[1]!AgePb76(H11) -> 5095.349418 | M11: 0.70751 | N11: 0.70754 | O11: 0.035 | P11: 1.000857143 | Q11: 48800000000 | R11: 1.420081967e-11 | S11: 1.621737374e+11 | T11: 60343707.18 | U11: 60.34370718 | V11: 0.06034370718 | AC11: 4907
A12: JEB-134 | B12: 0.70864 | C12: 0.7085 | D12: 0.51229 | E12: 0.512216 | F12: 17.497 | G12: 15.46 | H12: 0.8835800423 | I12: =[1]!AgePb76(H12) -> 5062.822346 | M12: 0.7071 | N12: 0.70732 | O12: 0.2426 | P12: 1.000906843 | Q12: 48800000000 | R12: 1.420081967e-11 | S12: 1.621737374e+11 | T12: 63841028.78 | U12: 63.84102878 | V12: 0.06384102878 | AC12: 4909
A13: JEB-297 | B13: 0.70948 | C13: 0.70925 | D13: 0.512289 | E13: 0.512238 | F13: 18.015 | G13: 15.545 | H13: 0.8628920344 | I13: =[1]!AgePb76(H13) -> 5029.263055 | M13: 0.70946 | N13: 0.70967 | O13: 0.2273 | P13: 1.000923889 | Q13: 48800000000 | R13: 1.420081967e-11 | S13: 1.621737374e+11 | T13: 65040542.18 | U13: 65.04054218 | V13: 0.06504054218 | AC13: 4910
A14: JEB-136 | B14: 0.71556 | C14: 0.71496 | D14: 0.512157 | E14: 0.512088 | F14: 22.807 | G14: 16.169 | H14: 0.7089490069 | I14: =[1]!AgePb76(H14) -> 4748.964487 | M14: 0.7085 | N14: 0.70864 | O14: 0.1495 | P14: 1.000936455 | Q14: 48800000000 | R14: 1.420081967e-11 | S14: 1.621737374e+11 | T14: 65924737.68 | U14: 65.92473768 | V14: 0.06592473768 | AC14: 4912
A15: JEB-185 | B15: 0.71659 | C15: 0.71636 | D15: 0.512099 | E15: 0.512032 | F15: 21.663 | G15: 16.055 | H15: 0.7411254212 | I15: =[1]!AgePb76(H15) -> 4812.593542 | M15: 0.70925 | N15: 0.70948 | O15: 0.2447 | P15: 1.000939926 | Q15: 48800000000 | R15: 1.420081967e-11 | S15: 1.621737374e+11 | T15: 66169016.68 | U15: 66.16901668 | V15: 0.06616901668 | AC15: 4913
A16: JEB-211 | B16: 0.71869 | C16: 0.71813 | D16: 0.511646 | E16: 0.51159 | F16: 18.949 | G16: 15.682 | H16: 0.8275898464 | I16: =[1]!AgePb76(H16) -> 4969.974914 | M16: 0.71496 | N16: 0.71556 | O16: 0.6624 | P16: 1.000905797 | Q16: 48800000000 | R16: 1.420081967e-11 | S16: 1.621737374e+11 | T16: 63767464.07 | U16: 63.76746407 | V16: 0.06376746407 | AC16: 4914
A17: JEB-353 | B17: 0.71304 | C17: 0.71268 | D17: 0.512223 | E17: 0.51215 | F17: 19.915 | G17: 15.806 | H17: 0.7936731107 | I17: =[1]!AgePb76(H17) -> 4910.425072 | M17: 0.71636 | N17: 0.71659 | O17: 0.2519 | P17: 1.000913061 | Q17: 48800000000 | R17: 1.420081967e-11 | S17: 1.621737374e+11 | T17: 64278585.61 | U17: 64.27858561 | V17: 0.06427858561 | AC17: 4916
A18: BEL-13 | B18: 0.70571 | C18: 0.70564 | D18: 0.512742 | E18: 0.512668 | F18: 18.89 | G18: 15.637 | H18: 0.8277924828 | I18: =[1]!AgePb76(H18) -> 4970.322847 | M18: 0.71813 | N18: 0.71869 | O18: 0.6084 | P18: 1.000920447 | Q18: 48800000000 | R18: 1.420081967e-11 | S18: 1.621737374e+11 | T18: 64798337.32 | U18: 64.79833732 | V18: 0.06479833732 | AC18: 4920
A19: JEB-300 | B19: 0.70769 | C19: 0.70749 | D19: 0.512463 | E19: 0.512396 | F19: 18.837 | G19: 15.632 | H19: 0.8298561342 | I19: =[1]!AgePb76(H19) -> 4973.861057 | M19: 0.71268 | N19: 0.71304 | O19: 0.3882 | P19: 1.000927357 | Q19: 48800000000 | R19: 1.420081967e-11 | S19: 1.621737374e+11 | T19: 65284564.46 | U19: 65.28456446 | V19: 0.06528456446 | AC19: 4932
M20: 0.70564 | N20: 0.70571 | O20: 0.0842 | P20: 1.000831354 | Q20: 48800000000 | R20: 1.420081967e-11 | S20: 1.621737374e+11 | T20: 58528894.54 | U20: 58.52889454 | V20: 0.05852889454 | AC20: 4944
M21: 0.70749 | N21: 0.70769 | O21: 0.2151 | P21: 1.0009298 | Q21: 48800000000 | R21: 1.420081967e-11 | S21: 1.621737374e+11 | T21: 65456472.42 | U21: 65.45647242 | V21: 0.06545647242 | AC21: 4947
A22: Table 3 | G22: Table 3: | AC22: 4947
A23: Sample | B23: (87Sr/86Sr)o | C23: (87Sr/86Sr)t | D23: (143Nd/144Nd)o | E23: (143Nd/144Nd)t | F23: 206Pb/204Pb | G23: 207Pb/204Pb | H23: 207Pb/206Pb | I23: 207Pb/206Pb, Age | AC23: 4948
A24: AL82-12 | C24: 0.70444 | E24: 0.512794 | L24: Neodymium | M24: Table 2 | V24: Table 2 | AC24: 4949
A25: DDH-011 | B25: 0.70439 | C25: 0.70434 | D25: 0.512337 | E25: 0.512269 | F25: 16.342 | G25: 15.149 | H25: =(G25/F25) -> 0.9269979195 | I25: =[1]!AgePb76(H25) -> 5130.622071 | L25: Samarium | M25: Initial | N25: Today | O25: Today | P25: The Ratio | Q25: Half | R25: Decay | S25: 2.303/Delta | T25: Age | U25: Age | V25: Age | AC25: 4951
A26: DDH-030 | B26: 0.70506 | C26: 0.70505 | D26: 0.512668 | E26: 0.5126 | F26: 17.267 | G26: 15.335 | H26: 0.8881102681 | I26: =[1]!AgePb76(H26) -> 5070.059816 | L26: Dating | M26: 143Nd/144Nd | N26: 143Nd/144Nd | O26: 147Sm/144Nd | P26: Plus One | Q26: Life | R26: Constant | S26: Constant | T26: Years | U26: Million Years | V26: Billion Years | AC26: 4952
A27: DDH-034 | B27: 0.70669 | C27: 0.70665 | D27: 0.512642 | E27: 0.512567 | F27: 18.941 | G27: 15.637 | H27: 0.8255635922 | I27: =[1]!AgePb76(H27) -> 4966.490781 | M27: 0.512199 | N27: 0.512265 | O27: 0.1545 | P27: =1+((N27-M27)/O27) -> 1.000427184 | Q27: 106000000000 | R27: =(0.693/Q27) -> 6.537735849e-12 | S27: =(2.303/R27) -> 3.522626263e+11 | T27: =(LOG(P27))*(S27) -> 65339165.93 | U27: =(T27/1000000) -> 65.33916593 | V27: =(U27/1000) -> 0.06533916593 | AC27: 4952
A28: DDH-036 | B28: 0.71366 | C28: 0.71327 | D28: 0.512105 | E28: 0.512036 | F28: 19.389 | G28: 15.752 | H28: 0.8124194131 | I28: =[1]!AgePb76(H28) -> 4943.666293 | M28: 0.512004 | N28: 0.512066 | O28: 0.1464 | P28: =1+((N28-M28)/O28) -> 1.000423497 | Q28: 106000000000 | R28: 6.537735849e-12 | S28: =(2.303/R28) -> 3.522626263e+11 | T28: =(LOG(P28))*(S28) -> 64775317.09 | U28: =(T28/1000000) -> 64.77531709 | V28: =(U28/1000) -> 0.06477531709 | AC28: 4954
A29: DDH-039 | B29: 0.7048 | C29: 0.70455 | D29: 0.512706 | E29: 0.512638 | F29: 17.451 | G29: 15.378 | H29: 0.8812102458 | I29: =[1]!AgePb76(H29) -> 5059.020671 | M29: 0.511766 | N29: 0.511829 | O29: 0.1474 | P29: 1.000427408 | Q29: 106000000000 | R29: 6.537735849e-12 | S29: 3.522626263e+11 | T29: 65373411.9 | U29: 65.3734119 | V29: 0.0653734119 | AC29: 4958
A30: DDH-040 | B30: 0.70458 | C30: 0.70437 | D30: 0.512758 | E30: 0.51269 | F30: 17.617 | G30: 15.389 | H30: 0.8735312482 | I30: =[1]!AgePb76(H30) -> 5046.626933 | M30: 0.512518 | N30: 0.512591 | O30: 0.1706 | P30: =1+((N30-M30)/O30) -> 1.000427902 | Q30: 106000000000 | R30: =(0.693/Q30) -> 6.537735849e-12 | S30: =(2.303/R30) -> 3.522626263e+11 | T30: =(LOG(P30))*(S30) -> 65448818.68 | U30: =(T30/1000000) -> 65.44881868 | V30: =(U30/1000) -> 0.06544881868 | AC30: 4960
A31: DDH-095 | B31: 0.70677 | C31: 0.7065 | D31: 0.512629 | E31: 0.512561 | F31: 19.754 | G31: 15.741 | H31: 0.7968512706 | I31: =[1]!AgePb76(H31) -> 4916.11907 | M31: 0.512539 | N31: 0.512607 | O31: 0.1596 | P31: 1.000426065 | Q31: 106000000000 | R31: 6.537735849e-12 | S31: 3.522626263e+11 | T31: 65168001.56 | U31: 65.16800156 | V31: 0.06516800156 | AC31: 4966
A32: DDH-116 | B32: 0.70429 | C32: 0.70423 | D32: 0.512873 | E32: 0.512798 | F32: 18.421 | G32: 15.536 | H32: 0.8433852668 | I32: =[1]!AgePb76(H32) -> 4996.828164 | M32: 0.512439 | N32: 0.512506 | O32: 0.157 | P32: 1.000426752 | Q32: 106000000000 | R32: 6.537735849e-12 | S32: 3.522626263e+11 | T32: 65272970.7 | U32: 65.2729707 | V32: 0.0652729707 | AC32: 4968
A33: IND-005 | B33: 0.7056 | C33: 0.70542 | D33: 0.512684 | E33: 0.512614 | F33: 18.526 | G33: 15.594 | H33: 0.8417359387 | I33: =[1]!AgePb76(H33) -> 4994.049292 | M33: 0.512324 | N33: 0.512383 | O33: 0.1395 | P33: 1.000422939 | Q33: 106000000000 | R33: 6.537735849e-12 | S33: 3.522626263e+11 | T33: 64689956.65 | U33: 64.68995665 | V33: 0.06468995665 | AC33: 4970
A34: JH-35 | B34: 0.70459 | C34: 0.70452 | D34: 0.512864 | E34: 0.512783 | F34: 18.404 | G34: 15.557 | H34: 0.8453053684 | I34: =[1]!AgePb76(H34) -> 5000.055985 | M34: 0.51239 | N34: 0.512462 | O34: 0.1682 | P34: 1.000428062 | Q34: 106000000000 | R34: 6.537735849e-12 | S34: 3.522626263e+11 | T34: 65473332.89 | U34: 65.47333289 | V34: 0.06547333289 | AC34: 4970
A35: JH-40 | B35: 0.70665 | C35: 0.70647 | D35: 0.512688 | E35: 0.512614 | F35: 18.861 | G35: 15.638 | H35: 0.8291182864 | I35: =[1]!AgePb76(H35) -> 4972.597064 | M35: 0.51192 | N35: 0.511981 | O35: 0.1424 | P35: 1.000428371 | Q35: 106000000000 | R35: 6.537735849e-12 | S35: 3.522626263e+11 | T35: 65520578.41 | U35: 65.52057841 | V35: 0.06552057841 | AC35: 4973
A36: JH-48 | B36: 0.70829 | C36: 0.70803 | D36: 0.512437 | E36: 0.512371 | F36: 18.907 | G36: 15.622 | H36: 0.8262548263 | I36: =[1]!AgePb76(H36) -> 4967.680374 | M36: 0.512216 | N36: 0.51229 | O36: 0.174 | P36: 1.000425287 | Q36: 106000000000 | R36: 6.537735849e-12 | S36: 3.522626263e+11 | T36: 65049058.9 | U36: 65.0490589 | V36: 0.0650490589 | AC36: 4974
A37: JH-72 | B37: 0.71059 | C37: 0.71018 | D37: 0.512254 | E37: 0.512186 | F37: 19.902 | G37: 15.835 | H37: 0.7956486785 | I37: =[1]!AgePb76(H37) -> 4913.96735 | M37: 0.512238 | N37: 0.512289 | O37: 0.1199 | P37: 1.000425354 | Q37: 106000000000 | R37: 6.537735849e-12 | S37: 3.522626263e+11 | T37: 65059320.75 | U37: 65.05932075 | V37: 0.06505932075 | AC37: 4978
A38: JW-32 | B38: 0.70936 | C38: 0.70886 | D38: 0.512439 | E38: 0.512376 | F38: 19.297 | G38: 15.727 | H38: 0.8149971498 | I38: =[1]!AgePb76(H38) -> 4948.173267 | M38: 0.512088 | N38: 0.512157 | O38: 0.1623 | P38: 1.000425139 | Q38: 106000000000 | R38: 6.537735849e-12 | S38: 3.522626263e+11 | T38: 65026315.9 | U38: 65.0263159 | V38: 0.0650263159 | AC38: 4986
A39: ORL-5 | B39: 0.70499 | C39: 0.70496 | D39: 0.512766 | E39: 0.512691 | F39: 17.551 | G39: 15.398 | H39: 0.8773289271 | I39: =[1]!AgePb76(H39) -> 5052.770691 | M39: 0.512032 | N39: 0.512099 | O39: 0.1578 | P39: 1.000424588 | Q39: 106000000000 | R39: 6.537735849e-12 | S39: 3.522626263e+11 | T39: 64942126 | U39: 64.942126 | V39: 0.064942126 | AC39: 4993
A40: AM-2 | B40: 0.70414 | C40: 0.70407 | D40: 0.512861 | E40: 0.512788 | F40: 18.142 | G40: 15.467 | H40: 0.8525520891 | I40: =[1]!AgePb76(H40) -> 5012.168441 | M40: 0.51159 | N40: 0.511646 | O40: 0.1323 | P40: 1.00042328 | Q40: 106000000000 | R40: 6.537735849e-12 | S40: 3.522626263e+11 | T40: 64742157.02 | U40: 64.74215702 | V40: 0.06474215702 | AC40: 4994
A41: AM-30 | B41: 0.70938 | C41: 0.7092 | D41: 0.512243 | E41: 0.512164 | F41: 17.677 | G41: 15.6 | H41: 0.8825026871 | I41: =[1]!AgePb76(H41) -> 5061.095374 | M41: 0.51215 | N41: 0.512223 | O41: 0.1709 | P41: 1.00042715 | Q41: 106000000000 | R41: 6.537735849e-12 | S41: 3.522626263e+11 | T41: 65333953.53 | U41: 65.33395353 | V41: 0.06533395353 | AC41: 4994
A42: BOR-13 | B42: 0.70486 | C42: 0.70467 | D42: 0.512713 | E42: 0.512647 | F42: 17.898 | G42: 15.446 | H42: 0.8630014527 | I42: =[1]!AgePb76(H42) -> 5029.442787 | M42: 0.512668 | N42: 0.512742 | O42: 0.1748 | P42: 1.000423341 | Q42: 106000000000 | R42: 6.537735849e-12 | S42: 3.522626263e+11 | T42: 64751414.53 | U42: 64.75141453 | V42: 0.06475141453 | AC42: 4994
A43: BOR-14 | B43: 0.70489 | C43: 0.70479 | D43: 0.512704 | E43: 0.51263 | F43: 17.898 | G43: 15.454 | H43: 0.86344843 | I43: =[1]!AgePb76(H43) -> 5030.176746 | M43: 0.512396 | N43: 0.512463 | O43: 0.1579 | P43: 1.000424319 | Q43: 106000000000 | R43: 6.537735849e-12 | S43: 3.522626263e+11 | T43: 64901006.08 | U43: 64.90100608 | V43: 0.06490100608 | AC43: 4995
A44: BOR-20 | B44: 0.70466 | C44: 0.70452 | D44: 0.512747 | E44: 0.512671 | F44: 18.031 | G44: 15.471 | H44: 0.8580222949 | I44: =[1]!AgePb76(H44) -> 5021.239363 | AC44: 4995
A45: BOR-29 | B45: 0.7062 | C45: 0.70614 | D45: 0.512669 | E45: 0.512599 | F45: 18.528 | G45: 15.59 | H45: 0.8414291883 | I45: =[1]!AgePb76(H45) -> 4993.531825 | AC45: 4996
A46: DDH-5 | B46: 0.70435 | C46: 0.70421 | D46: 0.512828 | E46: 0.512747 | F46: 18 | G46: 15.465 | H46: 0.8591666667 | I46: =[1]!AgePb76(H46) -> 5023.129241 | AC46: 4997
A47: DDH-13 | B47: 0.70454 | C47: 0.70451 | D47: 0.512841 | E47: 0.512767 | F47: 18.332 | G47: 15.567 | H47: 0.8491708488 | I47: =[1]!AgePb76(H47) -> 5006.530565 | AC47: 5000
A48: DDH-081 | B48: 0.70616 | C48: 0.70608 | D48: 0.512671 | E48: 0.512601 | F48: 18.499 | G48: 15.565 | H48: 0.8413968323 | I48: =[1]!AgePb76(H48) -> 4993.477231 | AC48: 5007
A49: DDH-089 | B49: 0.70556 | C49: 0.7055 | D49: 0.512726 | E49: 0.512655 | F49: 19.779 | G49: 15.71 | H49: 0.7942767582 | I49: =[1]!AgePb76(H49) -> 4911.508433 | AC49: 5007
A50: IGA-6 | B50: 0.70865 | C50: 0.70854 | D50: 0.512429 | E50: 0.512364 | F50: 19.281 | G50: 15.719 | H50: 0.8152585447 | I50: =[1]!AgePb76(H50) -> 4948.629449 | AC50: 5008
A51: IGA-13 | B51: 0.70657 | C51: 0.70647 | D51: 0.512577 | E51: 0.512508 | F51: 19.517 | G51: 15.723 | H51: 0.8056053697 | I51: =[1]!AgePb76(H51) -> 4931.67883 | AC51: 5012
A52: IGA-19 | B52: 0.71215 | C52: 0.71204 | D52: 0.51187 | E52: 0.511804 | F52: 18.951 | G52: 15.547 | H52: 0.8203788718 | I52: =[1]!AgePb76(H52) -> 4957.534127 | AC52: 5019
A53: JEB-008 | B53: 0.7048 | C53: 0.7047 | D53: 0.512681 | E53: 0.512604 | F53: 17.152 | G53: 15.314 | H53: 0.8928404851 | I53: =[1]!AgePb76(H53) -> 5077.575122 | AC53: 5021
A54: JEB-016 | B54: 0.70752 | C54: 0.70728 | D54: 0.51237 | E54: 0.512297 | F54: 17.517 | G54: 15.466 | H54: 0.8829137409 | I54: =[1]!AgePb76(H54) -> 5061.754546 | AC54: 5021
A55: JEB-182 | B55: 0.70516 | C55: 0.70508 | D55: 0.512693 | E55: 0.51262 | F55: 18.007 | G55: 15.47 | H55: 0.859110346 | I55: =[1]!AgePb76(H55) -> 5023.036292 | AC55: 5021
A56: JEB-284 | B56: 0.70751 | C56: 0.70729 | D56: 0.512368 | E56: 0.512295 | F56: 17.528 | G56: 15.462 | H56: 0.8821314468 | I56: =[1]!AgePb76(H56) -> 5060.499767 | AC56: 5023
A57: JEB-327 | B57: 0.70759 | C57: 0.70733 | D57: 0.513675 | E57: 0.513603 | F57: 17.521 | G57: 15.475 | H57: 0.8832258433 | I57: =[1]!AgePb76(H57) -> 5062.25482 | AC57: 5023
A58: JEB-332 | B58: 0.70624 | C58: 0.70608 | D58: 0.512657 | E58: 0.512579 | F58: 18.485 | G58: 15.558 | H58: 0.8416553963 | I58: =[1]!AgePb76(H58) -> 4993.913442 | AC58: 5029
A59: JEB-333 | B59: 0.70914 | C59: 0.70903 | D59: 0.512005 | E59: 0.51193 | F59: 16.58 | G59: 15.405 | H59: 0.9291314837 | I59: =[1]!AgePb76(H59) -> 5133.866501 | AC59: 5029
A60: JEB-393 | B60: 0.70699 | C60: 0.70668 | D60: 0.512619 | E60: 0.512544 | F60: 20.448 | G60: 15.844 | H60: 0.7748435055 | I60: =[1]!AgePb76(H60) -> 4876.184015 | AC60: 5030
A61: JEB-396 | B61: 0.7049 | C61: 0.70474 | D61: 0.512668 | E61: 0.512593 | F61: 17.775 | G61: 15.344 | H61: 0.8632348805 | I61: =[1]!AgePb76(H61) -> 5029.826137 | AC61: 5030
A62: JEB-397 | B62: 0.70524 | C62: 0.70514 | D62: 0.512633 | E62: 0.512572 | F62: 17.781 | G62: 15.453 | H62: 0.8690737304 | I62: =[1]!AgePb76(H62) -> 5039.379448 | AC62: 5031
A63: JEB-426 | B63: 0.70509 | C63: 0.70496 | D63: 0.512694 | E63: 0.512632 | F63: 18.217 | G63: 15.489 | H63: 0.8502497667 | I63: =[1]!AgePb76(H63) -> 5008.332138 | AC63: 5037
A64: JEB-438 | B64: 0.70688 | C64: 0.70665 | D64: 0.512637 | E64: 0.51257 | F64: 20.499 | G64: 15.834 | H64: 0.7724279233 | I64: =[1]!AgePb76(H64) -> 4871.727323 | AC64: 5037
A65: JEB-442 | B65: 0.70578 | C65: 0.70565 | D65: 0.51266 | E65: 0.512591 | F65: 19.226 | G65: 15.653 | H65: 0.8141579112 | I65: =[1]!AgePb76(H65) -> 4946.707589 | AC65: 5039
A66: JEB-453 | B66: 0.70835 | C66: 0.70809 | D66: 0.512251 | E66: 0.512181 | F66: 19.025 | G66: 15.551 | H66: 0.8173981603 | I66: =[1]!AgePb76(H66) -> 4952.357633 | AC66: 5042
A67: JEB-455 | B67: 0.70642 | C67: 0.70642 | D67: 0.512662 | E67: 0.512584 | F67: 18.493 | G67: 15.576 | H67: 0.8422646407 | I67: =[1]!AgePb76(H67) -> 4994.940705 | AC67: 5047
A68: JH-20 | B68: 0.70821 | C68: 0.70752 | D68: 0.512562 | E68: 0.512497 | F68: 20.683 | G68: 15.893 | H68: 0.7684088382 | I68: =[1]!AgePb76(H68) -> 4864.279201 | AC68: 5053
A69: JH-22 | B69: 0.70632 | C69: 0.70612 | D69: 0.512659 | E69: 0.512589 | F69: 18.489 | G69: 15.575 | H69: 0.8423927741 | I69: =[1]!AgePb76(H69) -> 4995.156654 | AC69: 5059
A70: JH-25 | B70: 0.71166 | C70: 0.71148 | D70: 0.512217 | E70: 0.512155 | F70: 18.893 | G70: 15.722 | H70: 0.8321600593 | I70: =[1]!AgePb76(H70) -> 4977.800195 | AC70: 5060
A71: JH-28 | B71: 0.70435 | C71: 0.70432 | D71: 0.512849 | E71: 0.512774 | F71: 18.041 | G71: 15.473 | H71: 0.8576575578 | I71: =[1]!AgePb76(H71) -> 5020.636454 | AC71: 5060
A72: TRM-59 | B72: 0.70574 | C72: 0.70566 | D72: 0.512355 | E72: 0.512292 | F72: 17.754 | G72: 15.343 | H72: 0.864199617 | I72: =[1]!AgePb76(H72) -> 5031.409325 | AC72: 5061
A73: UDD-9 | B73: 0.71712 | C73: 0.71691 | D73: 0.51203 | E73: 0.51196 | F73: 19.323 | G73: 15.732 | H73: 0.814159292 | I73: =[1]!AgePb76(H73) -> 4946.710002 | AC73: 5062
A74: DD-1 | B74: 0.71606 | C74: 0.71537 | D74: 0.512047 | E74: 0.51199 | F74: 22.066 | G74: 16.113 | H74: 0.7302184356 | I74: =[1]!AgePb76(H74) -> 4791.361005 | AC74: 5062
A75: DD-10 | B75: 0.70892 | C75: 0.7087 | D75: 0.512504 | E75: 0.512438 | F75: 21.233 | G75: 15.93 | H75: 0.7502472566 | I75: =[1]!AgePb76(H75) -> 4830.096532 | AC75: 5063
A76: DD-14 | B76: 0.70941 | C76: 0.70912 | D76: 0.51226 | E76: 0.512204 | F76: 19.26 | G76: 15.759 | H76: 0.8182242991 | I76: =[1]!AgePb76(H76) -> 4953.794366 | AC76: 5070
A77: DD-15 | B77: 0.71101 | C77: 0.71064 | D77: 0.512293 | E77: 0.512224 | F77: 19.301 | G77: 15.764 | H77: 0.8167452464 | I77: =[1]!AgePb76(H77) -> 4951.221061 | AC77: 5078
A78: DD-23 | B78: 0.70642 | C78: 0.70638 | D78: 0.51267 | E78: 0.512557 | F78: 19.836 | G78: 15.775 | H78: 0.795271224 | I78: =[1]!AgePb76(H78) -> 4913.291282 | AC78: 5095
A79: DHD-8 | B79: 0.7046 | C79: 0.70454 | D79: 0.512801 | E79: 0.512729 | F79: 17.698 | G79: 15.41 | H79: 0.8707198554 | I79: =[1]!AgePb76(H79) -> 5042.06047 | AC79: 5131
A80: DHD-9 | B80: 0.70454 | C80: 0.70448 | D80: 0.512798 | E80: 0.512727 | F80: 17.791 | G80: 15.438 | H80: 0.8677421168 | I80: =[1]!AgePb76(H80) -> 5037.206721 | AC80: 5134
A81: DHD-11 | B81: 0.70642 | C81: 0.7063 | D81: 0.512681 | E81: 0.512611 | F81: 19.177 | G81: 15.67 | H81: 0.8171246806 | I81: =[1]!AgePb76(H81) -> 4951.881686
A82: DND-2 | B82: 0.70954 | C82: 0.70937 | D82: 0.512297 | E82: 0.512232 | F82: 18.168 | G82: 15.563 | H82: 0.8566160282 | I82: =[1]!AgePb76(H82) -> 5018.91331
A83: NBD-1 | B83: 0.71526 | C83: 0.71495 | D83: 0.511859 | E83: 0.511802 | F83: 18.883 | G83: 15.8 | H83: 0.8367314516 | I83: =[1]!AgePb76(H83) -> 4985.581936
A84: NBD-4 | B84: 0.71007 | C84: 0.7096 | D84: 0.51231 | E84: 0.512242 | F84: 20.031 | G84: 15.863 | H84: 0.7919225201 | I84: =[1]!AgePb76(H84) -> 4907.278336
A85: NBD-10 | B85: 0.71119 | C85: 0.71093 | D85: 0.51236 | E85: 0.512297 | F85: 22.36 | G85: 16.085 | H85: 0.7193649374 | I85: =[1]!AgePb76(H85) -> 4769.893888
A86: TAP-001 | B86: 0.70639 | C86: 0.70592 | D86: 0.512682 | E86: 0.512619 | F86: 17.637 | G86: 15.556 | H86: 0.882009412 | I86: =[1]!AgePb76(H86) -> 5060.30392
A87: TAP-002 | B87: 0.70473 | C87: 0.70461 | D87: 0.512748 | E87: 0.512679 | F87: 17.764 | G87: 15.415 | H87: 0.8677662689 | I87: =[1]!AgePb76(H87) -> 5037.24616

Sheet Good_C

Sheet Good_D
A1: Table 2
A2: Sample | B2: 87Rb/86Sr | C2: 87Sr/86Sr | D2: (87Sr/86Sr)i | F2: 147Sm/144Nd | G2: 143Nd/144Nd | H2: (143Nd/144Nd)i
A3: JN2 | B3: 0.1013 | C3: 0.704876 | D3: 0.70471 | F3: 0.1468 | G3: 0.512266 | H3: 0.512156
A4: JN4 | B4: 0.1396 | C4: 0.704865 | D4: 0.704637 | F4: 0.1461 | G4: 0.512288 | H4: 0.512178
A5: JN14 | B5: 0.063 | C5: 0.704793 | D5: 0.70469 | F5: 0.1496 | G5: 0.512233 | H5: 0.51212
A6: JN6 | B6: 0.1267 | C6: 0.705416 | D6: 0.705209 | F6: 0.1553 | G6: 0.512262 | H6: 0.512145
A7: JN7 | B7: 0.2266 | C7: 0.705676 | D7: 0.705306 | F7: 0.0981 | G7: 0.512208 | H7: 0.512134
A8: JN8-1 | B8: 0.1709 | C8: 0.705486 | D8: 0.705207 | F8: 0.1216 | G8: 0.512367 | H8: 0.512276
A9: JN9 | B9: 0.094 | C9: 0.705506 | D9: 0.705352 | F9: 0.1265 | G9: 0.512201 | H9: 0.512106
A10: JN10 | B10: 0.1629 | C10: 0.705357 | D10: 0.705091 | F10: 0.1697 | G10: 0.512231 | H10: 0.512103
A11: JN13 | B11: 0.1182 | C11: 0.705676 | D11: 0.705483 | F11: 0.1295 | G11: 0.512199 | H11: 0.512102
A12: FS10 | B12: 0.0248 | C12: 0.706452 | D12: 0.706397 | F12: 0.1288 | G12: 0.511726 | H12: 0.511595
A13: HXY3 | B13: 0.1266 | C13: 0.706453 | D13: 0.706174 | F13: 0.1305 | G13: 0.511904 | H13: 0.511772
A14: HXY6 | B14: 0.1198 | C14: 0.706716 | D14: 0.706452 | F14: 0.1265 | G14: 0.51184 | H14: 0.511712
A15: HXY7 | B15: 0.1167 | C15: 0.706621 | D15: 0.706364 | F15: 0.1248 | G15: 0.51185 | H15: 0.511723
A16: GY1 | B16: 0.0294 | C16: 0.706677 | D16: 0.706612 | F16: 0.1317 | G16: 0.511922 | H16: 0.511788
A17: GY2 | B17: 0.148 | C17: 0.706272 | D17: 0.705946 | F17: 0.1405 | G17: 0.511942 | H17: 0.5118
A18: GY3 | B18: 0.1464 | C18: 0.706383 | D18: 0.70606 | F18: 0.1302 | G18: 0.511936 | H18: 0.511804
A19: DG1 | B19: 0.1582 | C19: 0.705447 | D19: 0.705098 | F19: 0.1244 | G19: 0.511906 | H19: 0.51178
A20: DG2 | B20: 0.1777 | C20: 0.705527 | D20: 0.705135 | F20: 0.1209 | G20: 0.511804 | H20: 0.511681
A21: DG3 | B21: 0.1412 | C21: 0.705169 | D21: 0.704858 | F21: 0.1322 | G21: 0.511883 | H21: 0.511749
A22: DG4 | B22: 0.1258 | C22: 0.705191 | D22: 0.704914 | F22: 0.1298 | G22: 0.5119 | H22: 0.511768
A23: WLG-01 | B23: 0.2176 | C23: 0.706486 | D23: 0.706053 | F23: 0.1342 | G23: 0.511965 | H23: 0.511842
A24: WLG-02 | B24: 0.1018 | C24: 0.706101 | D24: 0.705898 | F24: 0.159 | G24: 0.512031 | H24: 0.511885
A25: WLG-03 | B25: 0.146 | C25: 0.706283 | D25: 0.705993 | F25: 0.1451 | G25: 0.512012 | H25: 0.511879
A26: WLG-04 | B26: 0.1156 | C26: 0.70628 | D26: 0.70605 | F26: 0.1418 | G26: 0.511959 | H26: 0.511829
A27: WLG-05 | B27: 0.0805 | C27: 0.706219 | D27: 0.706059 | F27: 0.1109 | G27: 0.511884 | H27: 0.511782
A28: WLG-06 | B28: 0.1638 | C28: 0.706312 | D28: 0.705986 | F28: 0.101 | G28: 0.511867 | H28: 0.511775
A29: WLG-08 | B29: 0.3086 | C29: 0.70629 | D29: 0.705676 | F29: 0.1032 | G29: 0.511931 | H29: 0.511836
A30: WLG-09 | B30: 0.0021 | C30: 0.70586 | D30: 0.705856 | F30: 0.1519 | G30: 0.512038 | H30: 0.511899
A31: LMG-01 | B31: 0.0789 | C31: 0.706456 | D31: 0.706299 | F31: 0.1134 | G31: 0.511743 | H31: 0.511639
A32: LMG-02 | B32: 0.1101 | C32: 0.706034 | D32: 0.705815 | F32: 0.1383 | G32: 0.511747 | H32: 0.51162
A33: LMG-03 | B33: 0.0918 | C33: 0.706124 | D33: 0.705941 | F33: 0.1334 | G33: 0.511776 | H33: 0.511654
A34: LMG-04 | B34: 0.0827 | C34: 0.705924 | D34: 0.705759 | F34: 0.1204 | G34: 0.511745 | H34: 0.511635
A35: LMG-05 | B35: 0.0663 | C35: 0.706 | D35: 0.705868 | F35: 0.1157 | G35: 0.511733 | H35: 0.511627
A36: LMG-06 | B36: 0.0236 | C36: 0.706024 | D36: 0.705977 | F36: 0.1313 | G36: 0.511803 | H36: 0.511683
A37: LMG-07 | B37: 0.0728 | C37: 0.705824 | D37: 0.705679 | F37: 0.1264 | G37: 0.511782 | H37: 0.511666
A38: LMG-10 | B38: 0.0851 | C38: 0.706235 | D38: 0.706066 | F38: 0.0965 | G38: 0.511775 | H38: 0.511687
A39: LMG-11 | B39: 0.0844 | C39: 0.706388 | D39: 0.70622 | F39: 0.1021 | G39: 0.511786 | H39: 0.511692
A40: LMG-12 | B40: 0.0628 | C40: 0.705969 | D40: 0.705844 | F40: 0.0998 | G40: 0.511797 | H40: 0.511706
A41: LMG-13 | B41: 0.0647 | C41: 0.706284 | D41: 0.706155 | F41: 0.0988 | G41: 0.511791 | H41: 0.511701
A42: LMG-14 | B42: 0.1757 | C42: 0.706338 | D42: 0.705988 | F42: 0.0992 | G42: 0.511699 | H42: 0.511608
A45: Table 3 | G45: Age | I45: Age
A46: Sample | B46: 206Pb/204Pb | C46: 207Pb/204Pb | D46: 208Pb/204Pb | E46: 238U/204Pb | F46: 207Pb/206Pb | G46: 207Pb/206Pb | H46: 206Pb/238U | I46: 206Pb/238U
A47: JN2 | B47: 16.626 | C47: 15.226 | D47: 36.456 | E47: 3.6685 | F47: =(C47/B47) -> 0.9157945387 | G47: =[1]!AgePb76(F47) -> 5113.454643 | H47: =(B47/E47) -> 4.532097588 | I47: =[1]!AgePb6U8(H47) -> 11027.02372
A48: JN4 | B48: 16.91 | C48: 15.22 | D48: 36.587 | E48: 4.6363 | F48: =(C48/B48) -> 0.9000591366 | G48: =[1]!AgePb76(F48) -> 5088.963019 | H48: =(B48/E48) -> 3.647304963 | I48: =[1]!AgePb6U8(H48) -> 9903.545358
A49: JN14 | B49: 16.827 | C49: 15.266 | D49: 36.734 | E49: 0.4644 | F49: 0.9072324241 | G49: =[1]!AgePb76(F49) -> 5100.183831 | H49: 36.23385013 | I49: =[1]!AgePb6U8(H49) -> 23318.08733
A50: JN6 | B50: 16.939 | C50: 15.288 | D50: 36.692 | E50: 5.6669 | F50: 0.902532617 | G50: =[1]!AgePb76(F50) -> 5092.842835 | H50: 2.989112213 | I50: =[1]!AgePb6U8(H50) -> 8919.05691
A51: JN7 | B51: 16.735 | C51: 15.269 | D51: 36.408 | E51: 5.0007 | F51: 0.9123991634 | G51: =[1]!AgePb76(F51) -> 5108.207793 | H51: 3.346531486 | I51: =[1]!AgePb6U8(H51) -> 9472.220257
A52: JN8-1 | B52: 16.743 | C52: 15.269 | D52: 36.518 | E52: 2.7323 | F52: 0.9119632085 | G52: =[1]!AgePb76(F52) -> 5107.532616 | H52: 6.127804414 | I52: =[1]!AgePb6U8(H52) -> 12660.77841
A53: JN9 | B53: 16.828 | C53: 15.272 | D53: 36.599 | E53: 3.2051 | F53: 0.9075350606 | G53: =[1]!AgePb76(F53) -> 5100.65516 | H53: 5.250382203 | I53: =[1]!AgePb6U8(H53) -> 11813.97334
A54: JN10 | B54: 16.744 | C54: 15.264 | D54: 36.472 | E54: 4.1713 | F54: 0.911610129 | G54: =[1]!AgePb76(F54) -> 5106.98554 | H54: 4.014096325 | I54: =[1]!AgePb6U8(H54) -> 10393.25196
A55: JN13 | B55: 16.701 | C55: 15.248 | D55: 36.454 | E55: 3.3802 | F55: 0.9129992216 | G55: =[1]!AgePb76(F55) -> 5109.136562 | H55: 4.940831903 | I55: =[1]!AgePb6U8(H55) -> 11486.53779
A56: FS10 | B56: 16.968 | C56: 15.21 | D56: 37.039 | E56: 6.249 | F56: 0.8963932107 | G56: =[1]!AgePb76(F56) -> 5083.191932 | H56: 2.71531445 | I56: =[1]!AgePb6U8(H56) -> 8460.682147
A57: HXY3 | B57: 17.416 | C57: 15.257 | D57: 38.007 | E57: 1.1529 | F57: 0.8760335324 | G57: =[1]!AgePb76(F57) -> 5050.678221 | H57: 15.10625379 | I57: =[1]!AgePb6U8(H57) -> 17915.92349
A58: HXY6 | B58: 17.193 | C58: 15.18 | D58: 37.731 | E58: 1.0245 | F58: 0.8829174664 | G58: =[1]!AgePb76(F58) -> 5061.760518 | H58: 16.7818448 | I58: =[1]!AgePb6U8(H58) -> 18553.92736
A59: HXY7 | B59: 17.16 | C59: 15.223 | D59: 37.661 | E59: 0.585 | F59: 0.8871212121 | G59: =[1]!AgePb76(F59) -> 5068.483051 | H59: 29.33333333 | I59: =[1]!AgePb6U8(H59) -> 21996.75886
A61: GY1 | B61: 17.474 | C61: 15.25 | D61: 37.614 | E61: 11.5638 | F61: 0.8727251917 | G61: =[1]!AgePb76(F61) -> 5045.319276 | H61: 1.511094969 | I61: =[1]!AgePb6U8(H61) -> 5935.335378
A62: GY2 | B62: 18.063 | C62: 15.308 | D62: 39.18 | E62: 12.1116 | F62: 0.8474782705 | G62: =[1]!AgePb76(F62) -> 5003.699401 | H62: 1.491380164 | I62: =[1]!AgePb6U8(H62) -> 5884.52435
A63: GY3 | B63: 17.605 | C63: 15.243 | D63: 38.058 | E63: 6.9072 | F63: 0.86583357 | G63: =[1]!AgePb76(F63) -> 5034.086461 | H63: 2.548789669 | I63: =[1]!AgePb6U8(H63) -> 8165.070794
A64: DG1 | B64: 17.236 | C64: 15.257 | D64: 37.529 | E64: 6.9183 | F64: 0.8851821768 | G64: =[1]!AgePb76(F64) -> 5065.386399 | H64: 2.491363485 | I64: =[1]!AgePb6U8(H64) -> 8059.902294
A65: DG2 | B65: 17.022 | C65: 15.273 | D65: 36.934 | E65: 6.5121 | F65: 0.8972506168 | G65: =[1]!AgePb76(F65) -> 5084.543943 | H65: 2.613903349 | I65: =[1]!AgePb6U8(H65) -> 8282.278474
A66: DG3 | B66: 17.154 | C66: 15.273 | D66: 37.379 | E66: 3.9239 | F66: 0.8903462749 | G66: =[1]!AgePb76(F66) -> 5073.617631 | H66: 4.371671042 | I66: =[1]!AgePb6U8(H66) -> 10837.31856
A67: DG4 | B67: 17.083 | C67: 15.295 | D67: 37.261 | E67: 3.8168 | F67: 0.8953345431 | G67: =[1]!AgePb76(F67) -> 5081.520666 | H67: 4.475738839 | I67: =[1]!AgePb6U8(H67) -> 10961.01347
A69: WLG-01 | B69: 16.928 | C69: 15.265 | D69: 36.982 | E69: 6.023 | F69: 0.901760397 | G69: =[1]!AgePb76(F69) -> 5091.632769 | H69: 2.810559522 | I69: =[1]!AgePb6U8(H69) -> 8623.858401
A70: WLG-02 | B70: 16.635 | C70: 15.182 | D70: 36.493 | E70: 2.602 | F70: 0.9126540427 | G70: =[1]!AgePb76(F70) -> 5108.602374 | H70: 6.393159108 | I70: =[1]!AgePb6U8(H70) -> 12896.40695
A71: WLG-03 | B71: 16.743 | C71: 15.283 | D71: 36.846 | E71: 3.046 | F71: 0.9127993788 | G71: =[1]!AgePb76(F71) -> 5108.827318 | H71: 5.496717006 | I71: =[1]!AgePb6U8(H71) -> 12063.15535
A72: WLG-04 | B72: 16.729 | C72: 15.249 | D72: 36.745 | E72: 1.512 | F72: 0.9115308745 | G72: =[1]!AgePb76(F72) -> 5106.862709 | H72: 11.06415344 | I72: =[1]!AgePb6U8(H72) -> 16053.10898
A73: WLG-06 | B73: 16.719 | C73: 15.233 | D73: 36.743 | E73: 5.442 | F73: 0.9111190861 | G73: =[1]!AgePb76(F73) -> 5106.224325 | H73: 3.072216097 | I73: =[1]!AgePb6U8(H73) -> 9051.973227
A74: WLG-08 | B74: 16.867 | C74: 15.219 | D74: 36.726 | E74: 6.778 | F74: 0.9022944211 | G74: =[1]!AgePb76(F74) -> 5092.4697 | H74: 2.488492181 | I74: =[1]!AgePb6U8(H74) -> 8054.598568
A75: WLG-09 | B75: 16.678 | C75: 15.254 | D75: 36.643 | E75: 1.116 | F75: 0.9146180597 | G75: =[1]!AgePb76(F75) -> 5111.638976 | H75: 14.94444444 | I75: =[1]!AgePb6U8(H75) -> 17850.83293
A76: LMG-01 | B76: 16.693 | C76: 15.203 | D76: 36.866 | E76: 4.347 | F76: 0.9107410292 | G76: =[1]!AgePb76(F76) -> 5105.637964 | H76: 3.840119623 | I76: =[1]!AgePb6U8(H76) -> 10165.60474
A77: LMG-02 | B77: 16.802 | C77: 15.2 | D77: 36.748 | E77: 7.735 | F77: 0.9046542078 | G77: =[1]!AgePb76(F77) -> 5096.161719 | H77: 2.172204266 | I77: =[1]!AgePb6U8(H77) -> 7441.912641
A78: LMG-03 | B78: 16.681 | C78: 15.089 | D78: 36.444 | E78: 2.013 | F78: 0.9045620766 | G78: =[1]!AgePb76(F78) -> 5096.017766 | H78: 8.28663686 | I78: =[1]!AgePb6U8(H78) -> 14366.32696
A79: LMG-04 | B79: 16.786 | C79: 15.219 | D79: 36.666 | E79: 2.725 | F79: 0.9066483975 | G79: =[1]!AgePb76(F79) -> 5099.273791 | H79: 6.16 | I79: =[1]!AgePb6U8(H79) -> 12689.83066
A80: LMG-06 | B80: 16.641 | C80: 15.194 | D80: 36.689 | E80: 1.682 | F80: 0.913046091 | G80: =[1]!AgePb76(F80) -> 5109.20908 | H80: 9.893579073 | I80: =[1]!AgePb6U8(H80) -> 15395.15578
A81: LMG-07 | B81: 16.659 | C81: 15.173 | D81: 36.918 | E81: 2.511 | F81: 0.9107989675 | G81: =[1]!AgePb76(F81) -> 5105.727843 | H81: 6.634408602 | I81: =[1]!AgePb6U8(H81) -> 13103.40356
A82: LMG-10 | B82: 16.863 | C82: 15.284 | D82: 36.973 | E82: 6.039 | F82: 0.9063630433 | G82: =[1]!AgePb76(F82) -> 5098.828921 | H82: 2.792349727 | I82: =[1]!AgePb6U8(H82) -> 8592.978615
A83: LMG-11 | B83: 16.774 | C83: 15.26 | D83: 36.808 | E83: 6.907 | F83: 0.9097412662 | G83: =[1]!AgePb76(F83) -> 5104.086103 | H83: 2.428550746 | I83: =[1]!AgePb6U8(H83) -> 7942.869613
A84: LMG-12 | B84: 17.031 | C84: 15.218 | D84: 37.511 | E84: 4.328 | F84: 0.8935470612 | G84: =[1]!AgePb76(F84) -> 5078.694095 | H84: 3.935073937 | I84: =[1]!AgePb6U8(H84) -> 10290.84709
A85: LMG-13 | B85: 16.825 | C85: 15.282 | D85: 36.921 | E85: 6.776 | F85: 0.9082912333 | G85: =[1]!AgePb76(F85) -> 5101.832104 | H85: 2.483028335 | I85: =[1]!AgePb6U8(H85) -> 8044.493967
A86: LMG-14 | B86: 16.579 | C86: 15.228 | D86: 37.106 | E86: 3.103 | F86: 0.9185113698 | G86: =[1]!AgePb76(F86) -> 5117.638119 | H86: 5.342893974 | I86: =[1]!AgePb6U8(H86) -> 11908.68736
A95: Rubidium | B95: Table 2 | K95: Table 2
A96: Strontium | B96: Initial | C96: Today | D96: Today | E96: The Ratio | F96: Half | G96: Decay | H96: 2.303/Delta | I96: Age | J96: Age | K96: Age
A97: Dating | B97: 87Sr/86Sr | C97: 87Sr/86Sr | D97: 87Rb/86Sr | E97: Plus One | F97: Life | G97: Constant | H97: Constant | I97: Years | J97: Million Years | K97: Billion Years
B98: 0.70471 | C98: 0.704876 | D98: 0.1013 | E98: =1+((C98-B98)/D98) -> 1.001638697 | F98: 48800000000 | G98: =(0.693/F98) -> 1.420081967e-11 | H98: =(2.303/G98) -> 1.621737374e+11 | I98: =(LOG(E98))*(H98) -> 115320862.9 | J98: =(I98/1000000) -> 115.3208629 | K98: =(J98/1000) -> 0.1153208629
B99: 0.704637 | C99: 0.704865 | D99: 0.1396 | E99: =1+((C99-B99)/D99) -> 1.001633238 | F99: 48800000000 | G99: 1.420081967e-11 | H99: =(2.303/G99) -> 1.621737374e+11 | I99: =(LOG(E99))*(H99) -> 114936999 | J99: =(I99/1000000) -> 114.936999 | K99: =(J99/1000) -> 0.114936999
B100: 0.70469 | C100: 0.704793 | D100: 0.063 | E100: 1.001634921 | F100: 48800000000 | G100: 1.420081967e-11 | H100: 1.621737374e+11 | I100: 115055328 | J100: 115.055328 | K100: 0.115055328
B101: 0.705209 | C101: 0.705416 | D101: 0.1267 | E101: =1+((C101-B101)/D101) -> 1.001633781 | F101: 48800000000 | G101: =(0.693/F101) -> 1.420081967e-11 | H101: =(2.303/G101) -> 1.621737374e+11 | I101: =(LOG(E101))*(H101) -> 114975164 | J101: =(I101/1000000) -> 114.975164 | K101: =(J101/1000) -> 0.114975164
B102: 0.705306 | C102: 0.705676 | D102: 0.2266 | E102: 1.001632833 | F102: 48800000000 | G102: 1.420081967e-11 | H102: 1.621737374e+11 | I102: 114908546.4 | J102: 114.9085464 | K102: 0.1149085464
B103: 0.705207 | C103: 0.705486 | D103: 0.1709 | E103: 1.001632534 | F103: 48800000000 | G103: 1.420081967e-11 | H103: 1.621737374e+11 | I103: 114887483.8 | J103: 114.8874838 | K103: 0.1148874838
B104: 0.705352 | C104: 0.705506 | D104: 0.094 | E104: 1.001638298 | F104: 48800000000 | G104: 1.420081967e-11 | H104: 1.621737374e+11 | I104: 115292802.1 | J104: 115.2928021 | K104: 0.1152928021
B105: 0.705091 | C105: 0.705357 | D105: 0.1629 | E105: 1.001632904 | F105: 48800000000 | G105: 1.420081967e-11 | H105: 1.621737374e+11 | I105: 114913499.2 | J105: 114.9134992 | K105: 0.1149134992
B106: 0.705483 | C106: 0.705676 | D106: 0.1182 | E106: 1.001632826 | F106: 48800000000 | G106: 1.420081967e-11 | H106: 1.621737374e+11 | I106: 114908021.4 | J106: 114.9080214 | K106: 0.1149080214
B107: 0.706397 | C107: 0.706452 | D107: 0.0248 | E107: 1.002217742 | F107: 48800000000 | G107: 1.420081967e-11 | H107: 1.621737374e+11 | I107: 156025187.5 | J107: 156.0251875 | K107: 0.1560251875
B108: 0.706174 | C108: 0.706453 | D108: 0.1266 | E108: 1.002203791 | F108: 48800000000 | G108: 1.420081967e-11 | H108: 1.621737374e+11 | I108: 155044807.4 | J108: 155.0448074 | K108: 0.1550448074
B109: 0.706452 | C109: 0.706716 | D109: 0.1198 | E109: 1.002203673 | F109: 48800000000 | G109: 1.420081967e-11 | H109: 1.621737374e+11 | I109: 155036466.9 | J109: 155.0364669 | K109: 0.1550364669
B110: 0.706364 | C110: 0.706621 | D110: 0.1167 | E110: 1.002202228 | F110: 48800000000 | G110: 1.420081967e-11 | H110: 1.621737374e+11 | I110: 154934927.9 | J110: 154.9349279 | K110: 0.1549349279
B111: 0.706612 | C111: 0.706677 | D111: 0.0294 | E111: 1.002210884 | F111: 48800000000 | G111: 1.420081967e-11 | H111: 1.621737374e+11 | I111: 155543267.2 | J111: 155.5432672 | K111: 0.1555432672
B112: 0.705946 | C112: 0.706272 | D112: 0.148 | E112: 1.002202703 | F112: 48800000000 | G112: 1.420081967e-11 | H112: 1.621737374e+11 | I112: 154968292.9 | J112: 154.9682929 | K112: 0.1549682929
B113: 0.70606 | C113: 0.706383 | D113: 0.1464 | E113: 1.002206284 | F113: 48800000000 | G113: 1.420081967e-11 | H113: 1.621737374e+11 | I113: 155219983.7 | J113: 155.2199837 | K113: 0.1552199837
B114: 0.705098 | C114: 0.705447 | D114: 0.1582 | E114: 1.002206068 | F114: 48800000000 | G114: 1.420081967e-11 | H114: 1.621737374e+11 | I114: 155204812.2 | J114: 155.2048122 | K114: 0.1552048122
B115: 0.705135 | C115: 0.705527 | D115: 0.1777 | E115: 1.002205965 | F115: 48800000000 | G115: 1.420081967e-11 | H115: 1.621737374e+11 | I115: 155197562.6 | J115: 155.1975626 | K115: 0.1551975626
B116: 0.704858 | C116: 0.705169 | D116: 0.1412 | E116: 1.00220255 | F116: 48800000000 | G116: 1.420081967e-11 | H116: 1.621737374e+11 | I116: 154957531.6 | J116: 154.9575316 | K116: 0.1549575316
B117: 0.704914 | C117: 0.705191 | D117: 0.1258 | E117: 1.002201908 | F117: 48800000000 | G117: 1.420081967e-11 | H117: 1.621737374e+11 | I117: 154912429.3 | J117: 154.9124293 | K117: 0.1549124293
B118: 0.706053 | C118: 0.706486 | D118: 0.2176 | E118: 1.00198989 | F118: 48800000000 | G118: 1.420081967e-11 | H118: 1.621737374e+11 | I118: 140010981.7 | J118: 140.0109817 | K118: 0.1400109817
B119: 0.705898 | C119: 0.706101 | D119: 0.1018 | E119: 1.001994106 | F119: 48800000000 | G119: 1.420081967e-11 | H119: 1.621737374e+11 | I119: 140307356.2 | J119: 140.3073562 | K119: 0.1403073562
B120: 0.705993 | C120: 0.706283 | D120: 0.146 | E120: 1.001986301 | F120: 48800000000 | G120: 1.420081967e-11 | H120: 1.621737374e+11 | I120: 139758752.5 | J120: 139.7587525 | K120: 0.1397587525
B121: 0.70605 | C121: 0.70628 | D121: 0.1156 | E121: 1.001989619 | F121: 48800000000 | G121: 1.420081967e-11 | H121: 1.621737374e+11 | I121: 139991980 | J121: 139.99198 | K121: 0.13999198
B122: 0.706059 | C122: 0.706219 | D122: 0.0805 | E122: 1.001987578 | F122: 48800000000 | G122: 1.420081967e-11 | H122: 1.621737374e+11 | I122: 139848463.4 | J122: 139.8484634 | K122: 0.1398484634
B123: 0.705986 | C123: 0.706312 | D123: 0.1638 | E123: 1.001990232 | F123: 48800000000 | G123: 1.420081967e-11 | H123: 1.621737374e+11 | I123: 140035041.3 | J123: 140.0350413 | K123: 0.1400350413
B124: 0.705676 | C124: 0.70629 | D124: 0.3086 | E124: 1.001989631 | F124: 48800000000 | G124: 1.420081967e-11 | H124: 1.621737374e+11 | I124: 139992768.1 | J124: 139.9927681 | K124: 0.1399927681
B125: 0.705856 | C125: 0.70586 | D125: 0.0021 | E125: 1.001904762 | F125: 48800000000 | G125: 1.420081967e-11 | H125: 1.621737374e+11 | I125: 134026984.8 | J125: 134.0269848 | K125: 0.1340269848
B126: 0.706299 | C126: 0.706456 | D126: 0.0789 | E126: 1.001989861 | F126: 48800000000 | G126: 1.420081967e-11 | H126: 1.621737374e+11 | I126: 140008934.6 | J126: 140.0089346 | K126: 0.1400089346
B127: 0.705815 | C127: 0.706034 | D127: 0.1101 | E127: 1.001989101 | F127: 48800000000 | G127: 1.420081967e-11 | H127: 1.621737374e+11 | I127: 139955529.7 | J127: 139.9555297 | K127: 0.1399555297
B128: 0.705941 | C128: 0.706124 | D128: 0.0918 | E128: 1.001993464 | F128: 48800000000 | G128: 1.420081967e-11 | H128: 1.621737374e+11 | I128: 140262226.7 | J128: 140.2622267 | K128: 0.1402622267
B129: 0.705759 | C129: 0.705924 | D129: 0.0827 | E129: 1.001995163 | F129: 48800000000 | G129: 1.420081967e-11 | H129: 1.621737374e+11 | I129: 140381664.3 | J129: 140.3816643 | K129: 0.1403816643
B130: 0.705868 | C130: 0.706 | D130: 0.0663 | E130: 1.00199095 | F130: 48800000000 | G130: 1.420081967e-11 | H130: 1.621737374e+11 | I130: 140085527 | J130: 140.085527 | K130: 0.140085527
B131: 0.705977 | C131: 0.706024 | D131: 0.0236 | E131: 1.001991525 | F131: 48800000000 | G131: 1.420081967e-11 | H131: 1.621737374e+11 | I131: 140125958.3 | J131: 140.1259583 | K131: 0.1401259583
B132: 0.705679 | C132: 0.705824 | D132: 0.0728 | E132: 1.001991758 | F132: 48800000000 | G132: 1.420081967e-11 | H132: 1.621737374e+11 | I132: 140142323.4 | J132: 140.1423234 | K132: 0.1401423234
B133: 0.706066 | C133: 0.706235 | D133: 0.0851 | E133: 1.001985899 | F133: 48800000000 | G133: 1.420081967e-11 | H133: 1.621737374e+11 | I133: 139730465.3 | J133: 139.7304653 | K133: 0.1397304653
B134: 0.70622 | C134: 0.706388 | D134: 0.0844 | E134: 1.001990521 | F134: 48800000000 | G134: 1.420081967e-11 | H134: 1.621737374e+11 | I134: 140055379.2 | J134: 140.0553792 | K134: 0.1400553792
B135: 0.705844 | C135: 0.705969 | D135: 0.0628 | E135: 1.001990446 | F135: 48800000000 | G135: 1.420081967e-11 | H135: 1.621737374e+11 | I135: 140050074.5 | J135: 140.0500745 | K135: 0.1400500745
B136: 0.706155 | C136: 0.706284 | D136: 0.0647 | E136: 1.001993818 | F136: 48800000000 | G136: 1.420081967e-11 | H136: 1.621737374e+11 | I136: 140287079.3 | J136: 140.2870793 | K136: 0.1402870793
B137: 0.705988 | C137: 0.706338 | D137: 0.1757 | E137: 1.001992032 | F137: 48800000000 | G137: 1.420081967e-11 | H137: 1.621737374e+11 | I137: 140161557.2 | J137: 140.1615572 | K137: 0.1401615572
A143: Neodymium | B143: Table 2 | K143: Table 2
A144: Samarium | B144: Initial | C144: Today | D144: Today | E144: The Ratio | F144: Half | G144: Decay | H144: 2.303/Delta | I144: Age | J144: Age | K144: Age
A145: Dating | B145: 143Nd/144Nd | C145: 143Nd/144Nd | D145: 147Sm/144Nd | E145: Plus One | F145: Life | G145: Constant | H145: Constant | I145: Years | J145: Million Years | K145: Billion Years
B146: 0.512156 | C146: 0.512266 | D146: 0.1468 | E146: =1+((C146-B146)/D146) -> 1.000749319 | F146: 106000000000 | G146: =(0.693/F146) -> 6.537735849e-12 | H146: =(2.303/G146) -> 3.522626263e+11 | I146: =(LOG(E146))*(H146) -> 114592144.7 | J146: =(I146/1000000) -> 114.5921447 | K146: =(J146/1000) -> 0.1145921447
B147: 0.512178 | C147: 0.512288 | D147: 0.1461 | E147: =1+((C147-B147)/D147) -> 1.000752909 | F147: 106000000000 | G147: =(0.693/F147) -> 6.537735849e-12 | H147: =(2.303/G147) -> 3.522626263e+11 | I147: =(LOG(E147))*(H147) -> 115140976.5 | J147: =(I147/1000000) -> 115.1409765 | K147: =(J147/1000) -> 0.1151409765
B148: 0.51212 | C148: 0.512233 | D148: 0.1496 | E148: 1.000755348 | F148: 106000000000 | G148: 6.537735849e-12 | H148: 3.522626263e+11 | I148: 115513770.5 | J148: 115.5137705 | K148: 0.1155137705
B149: 0.512145 | C149: 0.512262 | D149: 0.1553 | E149: 1.000753381 | F149: 106000000000 | G149: 6.537735849e-12 | H149: 3.522626263e+11 | I149: 115213068.3 | J149: 115.2130683 | K149: 0.1152130683
B150: 0.512134 | C150: 0.512208 | D150: 0.0981 | E150: 1.000754332 | F150: 106000000000 | G150: 6.537735849e-12 | H150: 3.522626263e+11 | I150: 115358564.3 | J150: 115.3585643 | K150: 0.1153585643
B151: 0.512276 | C151: 0.512367 | D151: 0.1216 | E151: 1.000748355 | F151: 106000000000 | G151: 6.537735849e-12 | H151: 3.522626263e+11 | I151: 114444847.5 | J151: 114.4448475 | K151: 0.1144448475
B152: 0.512106 | C152: 0.512201 | D152: 0.1265 | E152: 1.000750988 | F152: 106000000000 | G152: 6.537735849e-12 | H152: 3.522626263e+11 | I152: 114847338.6 | J152: 114.8473386 | K152: 0.1148473386
B153: 0.512103 | C153: 0.512231 | D153: 0.1697 | E153: 1.000754272 | F153: 106000000000 | G153: 6.537735849e-12 | H153: 3.522626263e+11 | I153: 115349381.6 | J153: 115.3493816 | K153: 0.1153493816
B154: 0.512102 | C154: 0.512199 | D154: 0.1295 | E154: 1.000749035 | F154: 106000000000 | G154: 6.537735849e-12 | H154: 3.522626263e+11 | I154: 114548721.3 | J154: 114.5487213 | K154: 0.1145487213
B155: 0.511595 | C155: 0.511726 | D155: 0.1288 | E155: 1.001017081 | F155: 106000000000 | G155: 6.537735849e-12 | H155: 3.522626263e+11 | I155: 155519750.1 | J155: 155.5197501 | K155: 0.1555197501
B156: 0.511772 | C156: 0.511904 | D156: 0.1305 | E156: 1.001011494 | F156: 106000000000 | G156: 6.537735849e-12 | H156: 3.522626263e+11 | I156: 154665962.6 | J156: 154.6659626 | K156: 0.1546659626
B157: 0.511712 | C157: 0.51184 | D157: 0.1265 | E157: 1.001011858 | F157: 106000000000 | G157: 6.537735849e-12 | H157: 3.522626263e+11 | I157: 154721509.7 | J157: 154.7215097 | K157: 0.1547215097
B158: 0.511723 | C158: 0.51185 | D158: 0.1248 | E158: 1.001017628 | F158: 106000000000 | G158: 6.537735849e-12 | H158: 3.522626263e+11 | I158: 155603418.5 | J158: 155.6034185 | K158: 0.1556034185
B159: 0.511788 | C159: 0.511922 | D159: 0.1317 | E159: 1.001017464 | F159: 106000000000 | G159: 6.537735849e-12 | H159: 3.522626263e+11 | I159: 155578312.8 | J159: 155.5783128 | K159: 0.1555783128
B160: 0.5118 | C160: 0.511942 | D160: 0.1405 | E160: 1.001010676 | F160: 106000000000 | G160: 6.537735849e-12 | H160: 3.522626263e+11 | I160: 154540931.9 | J160: 154.5409319 | K160: 0.1545409319
B161: 0.511804 | C161: 0.511936 | D161: 0.1302 | E161: 1.001013825 | F161: 106000000000 | G161: 6.537735849e-12 | H161: 3.522626263e+11 | I161: 155022155.3 | J161: 155.0221553 | K161: 0.1550221553
B162: 0.51178 | C162: 0.511906 | D162: 0.1244 | E162: 1.001012862 | F162: 106000000000 | G162: 6.537735849e-12 | H162: 3.522626263e+11 | I162: 154874956.5 | J162: 154.8749565 | K162: 0.1548749565
B163: 0.511681 | C163: 0.511804 | D163: 0.1209 | E163: 1.00101737 | F163: 106000000000 | G163: 6.537735849e-12 | H163: 3.522626263e+11 | I163: 155563915.3 | J163: 155.5639153 | K163: 0.1555639153
B164: 0.511749 | C164: 0.511883 | D164: 0.1322 | E164: 1.001013616 | F164: 106000000000 | G164: 6.537735849e-12 | H164: 3.522626263e+11 | I164: 154990190.5 | J164: 154.9901905 | K164: 0.1549901905
B165: 0.511768 | C165: 0.5119 | D165: 0.1298 | E165: 1.001016949 | F165: 106000000000 | G165: 6.537735849e-12 | H165: 3.522626263e+11 | I165: 155499638.8 | J165: 155.4996388 | K165: 0.1554996388
B166: 0.511842 | C166: 0.511965 | D166: 0.1342 | E166: 1.000916542 | F166: 106000000000 | G166: 6.537735849e-12 | H166: 3.522626263e+11 | I166: 140153686.9 | J166: 140.1536869 | K166: 0.1401536869
B167: 0.511885 | C167: 0.512031 | D167: 0.159 | E167: 1.000918239 | F167: 106000000000 | G167: 6.537735849e-12 | H167: 3.522626263e+11 | I167: 140412992.3 | J167: 140.4129923 | K167: 0.1404129923
B168: 0.511879 | C168: 0.512012 | D168: 0.1451 | E168: 1.000916609 | F168: 106000000000 | G168: 6.537735849e-12 | H168: 3.522626263e+11 | I168: 140163891 | J168: 140.163891 | K168: 0.140163891
B169: 0.511829 | C169: 0.511959 | D169: 0.1418 | E169: 1.000916784 | F169: 106000000000 | G169: 6.537735849e-12 | H169: 3.522626263e+11 | I169: 140190634.1 | J169: 140.1906341 | K169: 0.1401906341
B170: 0.511782 | C170: 0.511884 | D170: 0.1109 | E170: 1.000919748 | F170: 106000000000 | G170: 6.537735849e-12 | H170: 3.522626263e+11 | I170: 140643563.4 | J170: 140.6435634 | K170: 0.1406435634
B171: 0.511775 | C171: 0.511867 | D171: 0.101 | E171: 1.000910891 | F171: 106000000000 | G171: 6.537735849e-12 | H171: 3.522626263e+11 | I171: 139289895 | J171: 139.289895 | K171: 0.139289895
B172: 0.511836 | C172: 0.511931 | D172: 0.1032 | E172: 1.000920543 | F172: 106000000000 | G172: 6.537735849e-12 | H172: 3.522626263e+11 | I172: 140765092.9 | J172: 140.7650929 | K172: 0.1407650929
B173: 0.511899 | C173: 0.512038 | D173: 0.1519 | E173: 1.000915076 | F173: 106000000000 | G173: 6.537735849e-12 | H173: 3.522626263e+11 | I173: 139929497.9 | J173: 139.9294979 | K173: 0.1399294979
B174: 0.511639 | C174: 0.511743 | D174: 0.1134 | E174: 1.000917108 | F174: 106000000000 | G174: 6.537735849e-12 | H174: 3.522626263e+11 | I174: 140240061.4 | J174: 140.2400614 | K174: 0.1402400614
B175: 0.51162 | C175: 0.511747 | D175: 0.1383 | E175: 1.000918294 | F175: 106000000000 | G175: 6.537735849e-12 | H175: 3.522626263e+11 | I175: 140421333.2 | J175: 140.4213332 | K175: 0.1404213332
B176: 0.511654 | C176: 0.511776 | D176: 0.1334 | E176: 1.000914543 | F176: 106000000000 | G176: 6.537735849e-12 | H176: 3.522626263e+11 | I176: 139848034.3 | J176: 139.8480343 | K176: 0.1398480343
B177: 0.511635 | C177: 0.511745 | D177: 0.1204 | E177: 1.000913621 | F177: 106000000000 | G177: 6.537735849e-12 | H177: 3.522626263e+11 | I177: 139707191.8 | J177: 139.7071918 | K177: 0.1397071918
B178: 0.511627 | C178: 0.511733 | D178: 0.1157 | E178: 1.000916162 | F178: 106000000000 | G178: 6.537735849e-12 | H178: 3.522626263e+11 | I178: 140095607.9 | J178: 140.0956079 | K178: 0.1400956079
B179: 0.511683 | C179: 0.511803 | D179: 0.1313 | E179: 1.000913938 | F179: 106000000000 | G179: 6.537735849e-12 | H179: 3.522626263e+11 | I179: 139755534.8 | J179: 139.7555348 | K179: 0.1397555348
B180: 0.511666 | C180: 0.511782 | D180: 0.1264 | E180: 1.000917722 | F180: 106000000000 | G180: 6.537735849e-12 | H180: 3.522626263e+11 | I180: 140333898.7 | J180: 140.3338987 | K180: 0.1403338987
B181: 0.511687 | C181: 0.511775 | D181: 0.0965 | E181: 1.000911917 | F181: 106000000000 | G181: 6.537735849e-12 | H181: 3.522626263e+11 | I181: 139446716.9 | J181: 139.4467169 | K181: 0.1394467169
B182: 0.511692 | C182: 0.511786 | D182: 0.1021 | E182: 1.000920666 | F182: 106000000000 | G182: 6.537735849e-12 | H182: 3.522626263e+11 | I182: 140783950.6 | J182: 140.7839506 | K182: 0.1407839506
B183: 0.511706 | C183: 0.511797 | D183: 0.0998 | E183: 1.000911824 | F183: 106000000000 | G183: 6.537735849e-12 | H183: 3.522626263e+11 | I183: 139432433.2 | J183: 139.4324332 | K183: 0.1394324332
B184: 0.511701 | C184: 0.511791 | D184: 0.0988 | E184: 1.000910931 | F184: 106000000000 | G184: 6.537735849e-12 | H184: 3.522626263e+11 | I184: 139296021.9 | J184: 139.2960219 | K184: 0.1392960219
B185: 0.511608 | C185: 0.511699 | D185: 0.0992 | E185: 1.000917339 | F185: 106000000000 | G185: 6.537735849e-12 | H185: 3.522626263e+11 | I185: 140275388 | J185: 140.275388 | K185: 0.140275388

Sheet Good_E

Sheet Good_F
A3: Table 2
A4: 87Rb/86Sr | B4: 0.0457 | C4: 0.1957 | D4: 0.1061 | E4: 0.0473 | F4: 0.1814 | G4: 0.0597 | I4: 0.0309 | J4: 0.0939 | K4: 0.029 | L4: 0.136 | N4: 0.0078 | O4: 0.0092
A5: 87Sr/86Sr (m) | B5: 0.703612 | C5: 0.703913 | D5: 0.704414 | E5: 0.703425 | F5: 0.705112 | G5: 0.703978 | H5: 0.704471 | I5: 0.703963 | J5: 0.70424 | K5: 0.703234 | L5: 0.703658 | M5: 0.70325 | N5: 0.703714 | O5: 0.703829
A6: 87Sr/86Sr (i) | B6: 0.703449 | C6: 0.703214 | D6: 0.704035 | E6: 0.703256 | F6: 0.704464 | G6: 0.703765 | I6: 0.703853 | J6: 0.703905 | K6: 0.70313 | L6: 0.703172 | N6: 0.703686 | O6: 0.703796
A8: 147Sm/144Nd | B8: 0.1077 | C8: 0.1075 | D8: 0.1047 | E8: 0.0897 | F8: 0.0934 | G8: 0.0805 | H8: 0.0789 | I8: 0.0788 | J8: 0.108 | K8: 0.097 | L8: 0.1165 | M8: 0.1069 | N8: 0.0661 | O8: 0.0693
A9: 143Nd/144Nd (m) | B9: 0.5128 | C9: 0.512789 | D9: 0.512657 | E9: 0.512828 | F9: 0.512567 | G9: 0.512641 | H9: 0.512553 | I9: 0.512581 | J9: 0.512708 | K9: 0.512796 | L9: 0.512763 | M9: 0.512751 | N9: 0.512605 | O9: 0.512583
A10: 143Nd/144Nd (i) | B10: 0.512623 | C10: 0.512612 | D10: 0.512485 | E10: 0.512681 | F10: 0.512414 | G10: 0.512509 | H10: 0.512423 | I10: 0.512452 | J10: 0.512531 | K10: 0.512637 | L10: 0.512572 | M10: 0.512575 | N10: 0.512496 | O10: 0.512469
A12: 176Lu/177Hf | B12: 0.00271 | C12: 0.00286 | D12: 0.00352 | E12: 0.00271 | F12: 0.00338 | G12: 0.00291 | H12: 0.00306 | I12: 0.00305 | J12: 0.00473 | K12: 0.00318 | L12: 0.00332 | M12: 0.0034 | N12: 0.00646 | O12: 0.00873
A13: 176Hf/177Hf (m) | B13: 0.282929 | C13: 0.282866 | D13: 0.282741 | E13: 0.282923 | F13: 0.282676 | G13: 0.282729 | H13: 0.282684 | I13: 0.282697 | J13: 0.282805 | K13: 0.28288 | L13: 0.282839 | M13: 0.282857 | N13: 0.282713 | O13: 0.282735
A14: 176Hf/177Hf (i) | B14: 0.282916 | C14: 0.282852 | D14: 0.282724 | E14: 0.28291 | F14: 0.28266 | G14: 0.282715 | H14: 0.282669 | I14: 0.282682 | J14: 0.282782 | K14: 0.282865 | L14: 0.282823 | M14: 0.28284 | N14: 0.282682 | O14: 0.282693
A16: 187Re/188Os | B16: 0.012 | C16: 0.846 | D16: 1.028 | E16: 0.654 | F16: 6.482 | G16: 0.875 | H16: 0.454 | I16: 0.807 | J16: 13.91 | K16: 12.648 | L16: 0.648 | M16: 2.1 | N16: 1.804 | O16: 0.893 | P16: 3.516
A17: 187Os/188Os (m) | B17: 0.12327 | C17: 0.12888 | D17: 0.14619 | E17: 0.14409 | F17: 0.17776 | G17: 0.14081 | H17: 0.145 | I17: 0.14446 | J17: 0.20695 | K17: 0.17569 | L17: 0.1274 | M17: 0.12817 | N17: 0.13067 | O17: 0.12649 | P17: 0.1424
A18: 187Os/188Os (i) | B18: 0.12322 | C18: 0.12534 | D18: 0.14188 | E18: 0.14135 | F18: 0.1506 | G18: 0.13714 | H18: 0.1431 | I18: 0.14108 | J18: 0.14865 | K18: 0.12269 | L18: 0.12469 | M18: 0.11937 | N18: 0.12311 | O18: 0.12275 | P18: 0.12766
A20: 238U/204Pb | B20: 59.6 | C20: 27.3 | D20: 14.4 | E20: 28.3 | F20: 14.6 | G20: 7.31 | H20: 27.3 | I20: 20.8 | J20: 16.2 | K20: 174 | L20: 15.5 | M20: 7.18 | N20: 408 | O20: 245
A21: 206Pb/204Pb | B21: 20.685 | C21: 19.13 | D21: 18.003 | E21: 19.273 | F21: 18.598 | G21: 18.537 | H21: 19.384 | I21: 19.37 | J21: 18.433 | K21: 24.978 | L21: 18.47 | M21: 18.344 | N21: 38.098 | O21: 26.564
A22: 207Pb/204Pb | B22: 15.802 | C22: 15.53 | D22: 15.44 | E22: 15.537 | F22: 15.528 | G22: 15.532 | H22: 15.576 | I22: 15.569 | J22: 15.493 | K22: 15.864 | L22: 15.523 | M22: 15.473 | N22: 16.536 | O22: 15.944
A23: 208Pb/204Pb | B23: 39.78 | C23: 39.25 | D23: 38.69 | E23: 39.45 | F23: 39.38 | G23: 39.55 | H23: 39.81 | I23: 39.75 | J23: 38.5 | K23: 47.25 | L23: 38.42 | M23: 38.37 | N23: 224.27 | O23: 120.88
A24: 206Pb/238U | B24: =(B21/B20) -> 0.3470637584 | C24: =(C21/C20) -> 0.7007326007 | D24: =(D21/D20) -> 1.250208333 | E24: 0.681024735 | F24: 1.273835616 | G24: 2.535841313 | H24: 0.71003663 | I24: 0.93125 | J24: 1.137839506 | K24: 0.1435517241 | L24: 1.191612903 | M24: 2.554874652 | N24: 0.09337745098 | O24: 0.1084244898
A25: 206Pb/238U, Age | B25: =[1]!AgePb6U8(B24) -> 1920.56232 | C25: =[1]!AgePb6U8(C24) -> 3423.426913 | D25: =[1]!AgePb6U8(D24) -> 5228.188909 | E25: =[1]!AgePb6U8(E24) -> 3348.290532 | F25: =[1]!AgePb6U8(F24) -> 5295.523639 | G25: =[1]!AgePb6U8(G24) -> 8141.506954 | H25: =[1]!AgePb6U8(H24) -> 3458.59656 | I25: =[1]!AgePb6U8(I24) -> 4242.820059 | J25: =[1]!AgePb6U8(J24) -> 4897.95805 | K25: =[1]!AgePb6U8(K24) -> 864.7153369 | L25: =[1]!AgePb6U8(L24) -> 5058.099973 | M25: =[1]!AgePb6U8(M24) -> 8176.114765 | N25: =[1]!AgePb6U8(N24) -> 575.4809632 | O25: =[1]!AgePb6U8(O24) -> 663.591481
A26: 207Pb/206Pb | B26: =(B22/B21) -> 0.7639352188 | C26: =(C22/C21) -> 0.8118139049 | D26: 0.8576348386 | E26: 0.8061536865 | F26: 0.8349284869 | G26: 0.837891784 | H26: 0.803549319 | I26: 0.8037687145 | J26: 0.8405034449 | K26: 0.6351189046 | L26: 0.8404439632 | M26: 0.8434910597 | N26: 0.4340385322 | O26: 0.6002108116
A27: 207Pb/206Pb, Age | B27: =[1]!AgePb76(B26) -> 4855.93977 | C27: =[1]!AgePb76(C26) -> 4942.605403 | D27: =[1]!AgePb76(D26) -> 5020.598891 | E27: =[1]!AgePb76(E26) -> 4932.647428 | F27: =[1]!AgePb76(F26) -> 4982.518213 | G27: =[1]!AgePb76(G26) -> 4987.549946 | H27: =[1]!AgePb76(H26) -> 4928.040574 | I27: =[1]!AgePb76(I26) -> 4928.429274 | J27: =[1]!AgePb76(J26) -> 4991.968945 | K27: =[1]!AgePb76(K26) -> 4590.472067 | L27: =[1]!AgePb76(L26) -> 4991.868462 | M27: =[1]!AgePb76(M26) -> 4997.006212 | N27: =[1]!AgePb76(N26) -> 4031.404152 | O27: =[1]!AgePb76(O26) -> 4508.508787
A30: Table 3
A31: 87Rb/86Sr | B31: 0.1668 | C31: 0.0542 | D31: 0.5697 | E31: 0.0052 | F31: 0.0959 | G31: 0.4626 | H31: 0.6188 | I31: 0.1158 | J31: 0.0756
A32: 87Sr/86Sr (m) | B32: 0.705637 | C32: 0.705309 | D32: 0.705639 | E32: 0.704203 | F32: 0.707449 | G32: 0.70622 | H32: 0.707279 | I32: 0.707085 | J32: 0.704001
A33: 87Sr/86Sr (i) | B33: 0.705267 | C33: 0.705187 | D33: 0.703877 | E33: 0.704185 | F33: 0.706956 | G33: 0.703816 | H33: 0.704064 | I33: 0.706465 | J33: 0.70349
A35: 147Sm/144Nd | B35: 0.0833 | C35: 0.0845 | D35: 0.087 | E35: 0.0907 | F35: 0.0898 | G35: 0.081 | H35: 0.0813 | I35: 0.0794 | J35: 0.0789
A36: 143Nd/144Nd (m) | B36: 0.512774 | C36: 0.512737 | D36: 0.5127 | E36: 0.512644 | F36: 0.512626 | G36: 0.512565 | H36: 0.512578 | I36: 0.512547 | J36: 0.512561
A37: 143Nd/144Nd (i) | B37: 0.512689 | C37: 0.51265 | D37: 0.512576 | E37: 0.512496 | F37: 0.512414 | G37: 0.512371 | H37: 0.512384 | I37: 0.512352 | J37: 0.512316
A39: 176Lu/177Hf | B39: 0.00332 | C39: 0.01372 | D39: 0.00342 | E39: 0.00264 | F39: 0.00617 | G39: 0.00285 | H39: 0.00325 | I39: 0.00337 | J39: 0.00158
A40: 176Hf/177Hf (m) | B40: 0.282851 | C40: 0.28287 | D40: 0.282904 | E40: 0.282812 | F40: 0.282691 | G40: 0.282707 | H40: 0.282684 | I40: 0.282653
A41: 176Hf/177Hf (i) | B41: 0.282841 | C41: 0.282856 | D41: 0.282891 | E41: 0.282769 | F41: 0.282671 | G41: 0.282684 | H41: 0.282659 | I41: 0.282638
A43: 238U/204Pb | C43: 30.85 | D43: 61.49 | F43: 14.6 | G43: 59.41 | H43: 32.8 | I43: 84.61 | J43: 28.54
A44: 206Pb/204Pb | B44: 19.599 | C44: 19.413 | D44: 21.003 | E44: 18.77 | F44: 19.996 | G44: 21.231 | H44: 20.698 | I44: 22.501 | J44: 21.83
A45: 207Pb/204Pb | B45: 15.595 | C45: 15.582 | D45: 15.656 | E45: 15.497 | F45: 15.574 | G45: 15.662 | H45: 15.632 | I45: 15.763 | J45: 15.725
A46: 208Pb/204Pb | B46: 39.86 | C46: 39.35 | D46: 41.8 | E46: 38.73 | F46: 39.89 | G46: 41.87 | H46: 41.05 | I46: 43.34 | J46: 42.01
A47: 206Pb/238U | B47: =(B44/B43) ->  | C47: =(C44/C43) -> 0.6292706645 | D47: =(D44/D43) -> 0.3415677346 | F47: 1.369589041 | G47: 0.3573640801 | H47: 0.6310365854 | I47: 0.2659378324 | J47: 0.7648913805
A48: 206Pb/238U, Age | B48: 0 | C48: =[1]!AgePb6U8(C47) -> 3146.704075 | D48: =[1]!AgePb6U8(D47) -> 1894.207132 | E48: 0 | F48: =[1]!AgePb6U8(F47) -> 5561.428137 | G48: =[1]!AgePb6U8(G47) -> 1969.667318 | H48: =[1]!AgePb6U8(H47) -> 3153.687379 | I48: =[1]!AgePb6U8(I47) -> 1520.149666 | J48: =[1]!AgePb6U8(J47) -> 3662.137938
A49: 207Pb/206Pb | B49: =(B45/B44) -> 0.7957038624 | C49: =(C45/C44) -> 0.8026580127 | D49: 0.7454173213 | E49: 0.8256259989 | F49: 0.7788557712 | G49: 0.7376948801 | H49: 0.7552420524 | I49: 0.7005466424 | J49: 0.7203389831
A50: 207Pb/206Pb, Age | B50: =[1]!AgePb76(B49) -> 4914.066163 | C50: =[1]!AgePb76(C49) -> 4926.460296 | D50: =[1]!AgePb76(D49) -> 4820.857299 | E50: =[1]!AgePb76(E49) -> 4966.598224 | F50: =[1]!AgePb76(F49) -> 4883.553944 | G50: =[1]!AgePb76(G49) -> 4805.951477 | H50: =[1]!AgePb76(H49) -> 4839.584654 | I50: =[1]!AgePb76(I49) -> 4731.840249 | J50: =[1]!AgePb76(J49) -> 4771.83453
A53: Rubidium | B53: Table 2 | K53: Table 2
A54: Strontium | B54: Initial | C54: Today | D54: Today | E54: The Ratio | F54: Half | G54: Decay | H54: 2.303/Delta | I54: Age | J54: Age | K54: Age
A55: Dating | B55: 87Sr/86Sr | C55: 87Sr/86Sr | D55: 87Rb/86Sr | E55: Plus One | F55: Life | G55: Constant | H55: Constant | I55: Years | J55: Million Years | K55: Billion Years
B56: 0.703449 | C56: 0.703612 | D56: 0.0457 | E56: =1+((C56-B56)/D56) -> 1.00356674 | F56: 48800000000 | G56: =(0.693/F56) -> 1.420081967e-11 | H56: =(2.303/G56) -> 1.621737374e+11 | I56: =(LOG(E56))*(H56) -> 250762668 | J56: =(I56/1000000) -> 250.762668 | K56: =(J56/1000) -> 0.250762668
B57: 0.703214 | C57: 0.703913 | D57: 0.1957 | E57: =1+((C57-B57)/D57) -> 1.003571794 | F57: 48800000000 | G57: 1.420081967e-11 | H57: =(2.303/G57) -> 1.621737374e+11 | I57: =(LOG(E57))*(H57) -> 251117358 | J57: =(I57/1000000) -> 251.117358 | K57: =(J57/1000) -> 0.251117358
B58: 0.704035 | C58: 0.704414 | D58: 0.1061 | E58: 1.003572102 | F58: 48800000000 | G58: 1.420081967e-11 | H58: 1.621737374e+11 | I58: 251138989.6 | J58: 251.1389896 | K58: 0.2511389896
B59: 0.703256 | C59: 0.703425 | D59: 0.0473 | E59: 1.003572939 | F59: 48800000000 | G59: 1.420081967e-11 | H59: 1.621737374e+11 | I59: 251197723.5 | J59: 251.1977235 | K59: 0.2511977235
B60: 0.704464 | C60: 0.705112 | D60: 0.1814 | E60: 1.003572216 | F60: 48800000000 | G60: 1.420081967e-11 | H60: 1.621737374e+11 | I60: 251147011.7 | J60: 251.1470117 | K60: 0.2511470117
B61: 0.703765 | C61: 0.703978 | D61: 0.0597 | E61: 1.003567839 | F61: 48800000000 | G61: 1.420081967e-11 | H61: 1.621737374e+11 | I61: 250839838.1 | J61: 250.8398381 | K61: 0.2508398381
B62: 0 | C62: 0.704471 | D62: 0 | E62: 0 | F62: 48800000000 | G62: 1.420081967e-11 | H62: 1.621737374e+11 | I62: 0 | J62: 0 | K62: 0
B63: 0.703853 | C63: 0.703963 | D63: 0.0309 | E63: =1+((C63-B63)/D63) -> 1.003559871 | F63: 48800000000 | G63: =(0.693/F63) -> 1.420081967e-11 | H63: =(2.303/G63) -> 1.621737374e+11 | I63: =(LOG(E63))*(H63) -> 250280590.2 | J63: =(I63/1000000) -> 250.2805902 | K63: =(J63/1000) -> 0.2502805902
B64: 0.703905 | C64: 0.70424 | D64: 0.0939 | E64: 1.003567625 | F64: 48800000000 | G64: 1.420081967e-11 | H64: 1.621737374e+11 | I64: 250824815 | J64: 250.824815 | K64: 0.250824815
B65: 0.70313 | C65: 0.703234 | D65: 0.029 | E65: 1.003586207 | F65: 48800000000 | G65: 1.420081967e-11 | H65: 1.621737374e+11 | I65: 252128885.6 | J65: 252.1288856 | K65: 0.2521288856
B66: 0.703172 | C66: 0.703658 | D66: 0.136 | E66: 1.003573529 | F66: 48800000000 | G66: 1.420081967e-11 | H66: 1.621737374e+11 | I66: 251239180.7 | J66: 251.2391807 | K66: 0.2512391807
B67: 0 | C67: 0.70325 | D67: 0 | E67: 0 | F67: 48800000000 | G67: 1.420081967e-11 | H67: 1.621737374e+11 | I67: 0 | J67: 0 | K67: 0
B68: 0.703686 | C68: 0.703714 | D68: 0.0078 | E68: 1.003589744 | F68: 48800000000 | G68: 1.420081967e-11 | H68: 1.621737374e+11 | I68: 252377088.5 | J68: 252.3770885 | K68: 0.2523770885
B69: 0.703796 | C69: 0.703829 | D69: 0.0092 | E69: 1.003586957 | F69: 48800000000 | G69: 1.420081967e-11 | H69: 1.621737374e+11 | I69: 252181493.9 | J69: 252.1814939 | K69: 0.2521814939
A72: Neodymium | B72: Table 2 | K72: Table 2
A73: Samarium | B73: Initial | C73: Today | D73: Today | E73: The Ratio | F73: Half | G73: Decay | H73: 2.303/Delta | I73: Age | J73: Age | K73: Age
A74: Dating | B74: 143Nd/144Nd | C74: 143Nd/144Nd | D74: 147Sm/144Nd | E74: Plus One | F74: Life | G74: Constant | H74: Constant | I74: Years | J74: Million Years | K74: Billion Years
B75: 0.512623 | C75: 0.5128 | D75: 0.1077 | E75: =1+((C75-B75)/D75) -> 1.001643454 | F75: 106000000000 | G75: =(0.693/F75) -> 6.537735849e-12 | H75: =(2.303/G75) -> 3.522626263e+11 | I75: =(LOG(E75))*(H75) -> 251218614.2 | J75: =(I75/1000000) -> 251.2186142 | K75: =(J75/1000) -> 0.2512186142
B76: 0.512612 | C76: 0.512789 | D76: 0.1075 | E76: =1+((C76-B76)/D76) -> 1.001646512 | F76: 106000000000 | G76: 6.537735849e-12 | H76: =(2.303/G76) -> 3.522626263e+11 | I76: =(LOG(E76))*(H76) -> 251685613.4 | J76: =(I76/1000000) -> 251.6856134 | K76: =(J76/1000) -> 0.2516856134
B77: 0.512485 | C77: 0.512657 | D77: 0.1047 | E77: =1+((C77-B77)/D77) -> 1.001642789 | F77: 106000000000 | G77: =(0.693/F77) -> 6.537735849e-12 | H77: =(2.303/G77) -> 3.522626263e+11 | I77: =(LOG(E77))*(H77) -> 251117027.5 | J77: =(I77/1000000) -> 251.1170275 | K77: =(J77/1000) -> 0.2511170275
B78: 0.512681 | C78: 0.512828 | D78: 0.0897 | E78: 1.001638796 | F78: 106000000000 | G78: 6.537735849e-12 | H78: 3.522626263e+11 | I78: 250507166.3 | J78: 250.5071663 | K78: 0.2505071663
B79: 0.512414 | C79: 0.512567 | D79: 0.0934 | E79: 1.001638116 | F79: 106000000000 | G79: 6.537735849e-12 | H79: 3.522626263e+11 | I79: 250403252 | J79: 250.403252 | K79: 0.250403252
B80: 0.512509 | C80: 0.512641 | D80: 0.0805 | E80: 1.001639752 | F80: 106000000000 | G80: 6.537735849e-12 | H80: 3.522626263e+11 | I80: 250653115 | J80: 250.653115 | K80: 0.250653115
B81: 0.512423 | C81: 0.512553 | D81: 0.0789 | E81: 1.001647655 | F81: 106000000000 | G81: 6.537735849e-12 | H81: 3.522626263e+11 | I81: 251860285.1 | J81: 251.8602851 | K81: 0.2518602851
B82: 0.512452 | C82: 0.512581 | D82: 0.0788 | E82: 1.001637056 | F82: 106000000000 | G82: 6.537735849e-12 | H82: 3.522626263e+11 | I82: 250241383.7 | J82: 250.2413837 | K82: 0.2502413837
B83: 0.512531 | C83: 0.512708 | D83: 0.108 | E83: 1.001638889 | F83: 106000000000 | G83: 6.537735849e-12 | H83: 3.522626263e+11 | I83: 250521355.8 | J83: 250.5213558 | K83: 0.2505213558
B84: 0.512637 | C84: 0.512796 | D84: 0.097 | E84: 1.001639175 | F84: 106000000000 | G84: 6.537735849e-12 | H84: 3.522626263e+11 | I84: 250565094.4 | J84: 250.5650944 | K84: 0.2505650944
B85: 0.512572 | C85: 0.512763 | D85: 0.1165 | E85: 1.001639485 | F85: 106000000000 | G85: 6.537735849e-12 | H85: 3.522626263e+11 | I85: 250612399.7 | J85: 250.6123997 | K85: 0.2506123997
B86: 0.512575 | C86: 0.512751 | D86: 0.1069 | E86: 1.001646399 | F86: 106000000000 | G86: 6.537735849e-12 | H86: 3.522626263e+11 | I86: 251668335.4 | J86: 251.6683354 | K86: 0.2516683354
B87: 0.512496 | C87: 0.512605 | D87: 0.0661 | E87: 1.001649017 | F87: 106000000000 | G87: 6.537735849e-12 | H87: 3.522626263e+11 | I87: 252068214.3 | J87: 252.0682143 | K87: 0.2520682143
B88: 0.512469 | C88: 0.512583 | D88: 0.0693 | E88: 1.001645022 | F88: 106000000000 | G88: 6.537735849e-12 | H88: 3.522626263e+11 | I88: 251458041.9 | J88: 251.4580419 | K88: 0.2514580419
A92: Lutetium | B92: Table 2
A93: Hafnium | B93: Initial | C93: Today | D93: Today | E93: The Ratio | F93: Half | G93: Decay | H93: 2.303/Delta | I93: Age | J93: Age | K93: Age
A94: Dating | B94: 176Hf/177Hf | C94: 176Hf/177Hf | D94: 176Lu/177Hf | E94: Plus One | F94: Life | G94: Constant | H94: Constant | I94: Years | J94: Million Years | K94: Billion Years
B95: 0.282916 | C95: 0.282929 | D95: 0.00271 | E95: =1+((C95-B95)/D95) -> 1.004797048 | F95: 37300000000 | G95: =(0.693/F95) -> 1.857908847e-11 | H95: =(2.303/G95) -> 1.239565657e+11 | I95: =(LOG(E95))*(H95) -> 257625185.9 | J95: =(I95/1000000) -> 257.6251859 | K95: =(J95/1000) -> 0.2576251859
B96: 0.282852 | C96: 0.282866 | D96: 0.00286 | E96: =1+((C96-B96)/D96) -> 1.004895105 | F96: 37300000000 | G96: 1.857908847e-11 | H96: =(2.303/G96) -> 1.239565657e+11 | I96: =(LOG(E96))*(H96) -> 262878490.4 | J96: =(I96/1000000) -> 262.8784904 | K96: =(J96/1000) -> 0.2628784904
B97: 0.282724 | C97: 0.282741 | D97: 0.00352 | E97: 1.004829545 | F97: 37300000000 | G97: 1.857908847e-11 | H97: 1.239565657e+11 | I97: 259366263.9 | J97: 259.3662639 | K97: 0.2593662639
B98: 0.28291 | C98: 0.282923 | D98: 0.00271 | E98: =1+((C98-B98)/D98) -> 1.004797048 | F98: 37300000000 | G98: =(0.693/F98) -> 1.857908847e-11 | H98: =(2.303/G98) -> 1.239565657e+11 | I98: =(LOG(E98))*(H98) -> 257625185.9 | J98: =(I98/1000000) -> 257.6251859 | K98: =(J98/1000) -> 0.2576251859
B99: 0.28266 | C99: 0.282676 | D99: 0.00338 | E99: 1.004733728 | F99: 37300000000 | G99: 1.857908847e-11 | H99: 1.239565657e+11 | I99: 254232597.5 | J99: 254.2325975 | K99: 0.2542325975
B100: 0.282715 | C100: 0.282729 | D100: 0.00291 | E100: 1.004810997 | F100: 37300000000 | G100: 1.857908847e-11 | H100: 1.239565657e+11 | I100: 258372499.5 | J100: 258.3724995 | K100: 0.2583724995
B101: 0.282669 | C101: 0.282684 | D101: 0.00306 | E101: 1.004901961 | F101: 37300000000 | G101: 1.857908847e-11 | H101: 1.239565657e+11 | I101: 263245768.9 | J101: 263.2457689 | K101: 0.2632457689
B102: 0.282682 | C102: 0.282697 | D102: 0.00305 | E102: 1.004918033 | F102: 37300000000 | G102: 1.857908847e-11 | H102: 1.239565657e+11 | I102: 264106756 | J102: 264.106756 | K102: 0.264106756
B103: 0.282782 | C103: 0.282805 | D103: 0.00473 | E103: 1.004862579 | F103: 37300000000 | G103: 1.857908847e-11 | H103: 1.239565657e+11 | I103: 261136019.1 | J103: 261.1360191 | K103: 0.2611360191
B104: 0.282865 | C104: 0.28288 | D104: 0.00318 | E104: 1.004716981 | F104: 37300000000 | G104: 1.857908847e-11 | H104: 1.239565657e+11 | I104: 253335302.6 | J104: 253.3353026 | K104: 0.2533353026
B105: 0.282823 | C105: 0.282839 | D105: 0.00332 | E105: 1.004819277 | F105: 37300000000 | G105: 1.857908847e-11 | H105: 1.239565657e+11 | I105: 258816135.4 | J105: 258.8161354 | K105: 0.2588161354
B106: 0.28284 | C106: 0.282857 | D106: 0.0034 | E106: 1.005 | F106: 37300000000 | G106: 1.857908847e-11 | H106: 1.239565657e+11 | I106: 268497576.3 | J106: 268.4975763 | K106: 0.2684975763
B107: 0.282682 | C107: 0.282713 | D107: 0.00646 | E107: 1.004798762 | F107: 37300000000 | G107: 1.857908847e-11 | H107: 1.239565657e+11 | I107: 257716996.9 | J107: 257.7169969 | K107: 0.2577169969
B108: 0.282693 | C108: 0.282735 | D108: 0.00873 | E108: 1.004810997 | F108: 37300000000 | G108: 1.857908847e-11 | H108: 1.239565657e+11 | I108: 258372499.5 | J108: 258.3724995 | K108: 0.2583724995
A111: Rhenium | B111: Table 2 | K111: Table 2
A112: Osmium | B112: Initial | C112: Today | D112: Today | E112: The Ratio | F112: Half | G112: Decay | H112: 2.303/Delta | I112: Age | J112: Age | K112: Age
A113: Dating | B113: 187Os/188Os | C113: 187Os/188Os | D113: 187Re/188Os | E113: Plus One | F113: Life | G113: Constant | H113: Constant | I113: Years | J113: Million Years | K113: Billion Years
B114: 0.12322 | C114: 0.12327 | D114: 0.012 | E114: =1+((C114-B114)/D114) -> 1.004166667 | F114: 41600000000 | G114: =(0.693/F114) -> 1.665865385e-11 | H114: =(2.303/G114) -> 1.382464646e+11 | I114: =(LOG(E114))*(H114) -> 249645585.2 | J114: =(I114/1000000) -> 249.6455852 | K114: =(J114/1000) -> 0.2496455852
B115: 0.12534 | C115: 0.12888 | D115: 0.846 | E115: 1.004184397 | F115: 41600000000 | G115: 1.665865385e-11 | H115: 1.382464646e+11 | I115: 250705692 | J115: =(I115/1000000) -> 250.705692 | K115: =(J115/1000) -> 0.250705692
B116: 0.14188 | C116: 0.14619 | D116: 1.028 | E116: 1.004192607 | F116: 41600000000 | G116: 1.665865385e-11 | H116: 1.382464646e+11 | I116: 251196552.2 | J116: 251.1965522 | K116: 0.2511965522
B117: 0.14135 | C117: 0.14409 | D117: 0.654 | E117: 1.004189602 | F117: 41600000000 | G117: 1.665865385e-11 | H117: 1.382464646e+11 | I117: 251016912.4 | J117: 251.0169124 | K117: 0.2510169124
B118: 0.1506 | C118: 0.17776 | D118: 6.482 | E118: 1.004190065 | F118: 41600000000 | G118: 1.665865385e-11 | H118: 1.382464646e+11 | I118: 251044555.8 | J118: 251.0445558 | K118: 0.2510445558
B119: 0.13714 | C119: 0.14081 | D119: 0.875 | E119: 1.004194286 | F119: 41600000000 | G119: 1.665865385e-11 | H119: 1.382464646e+11 | I119: 251296920.5 | J119: 251.2969205 | K119: 0.2512969205
B120: 0.1431 | C120: 0.145 | D120: 0.454 | E120: 1.004185022 | F120: 41600000000 | G120: 1.665865385e-11 | H120: 1.382464646e+11 | I120: 250743052.2 | J120: 250.7430522 | K120: 0.2507430522
B121: 0.14108 | C121: 0.14446 | D121: 0.807 | E121: 1.004188352 | F121: 41600000000 | G121: 1.665865385e-11 | H121: 1.382464646e+11 | I121: 250942144.5 | J121: 250.9421445 | K121: 0.2509421445
B122: 0.14865 | C122: 0.20695 | D122: 13.91 | E122: 1.004191229 | F122: 41600000000 | G122: 1.665865385e-11 | H122: 1.382464646e+11 | I122: 251114182.5 | J122: 251.1141825 | K122: 0.2511141825
B123: 0.12269 | C123: 0.17569 | D123: 12.648 | E123: 1.004190386 | F123: 41600000000 | G123: 1.665865385e-11 | H123: 1.382464646e+11 | I123: 251063750.4 | J123: 251.0637504 | K123: 0.2510637504
B124: 0.12469 | C124: 0.1274 | D124: 0.648 | E124: 1.004182099 | F124: 41600000000 | G124: 1.665865385e-11 | H124: 1.382464646e+11 | I124: 250568271.8 | J124: 250.5682718 | K124: 0.2505682718
B125: 0.11937 | C125: 0.12817 | D125: 2.1 | E125: 1.004190476 | F125: 41600000000 | G125: 1.665865385e-11 | H125: 1.382464646e+11 | I125: 251069152.8 | J125: 251.0691528 | K125: 0.2510691528
B126: 0.12311 | C126: 0.13067 | D126: 1.804 | E126: 1.004190687 | F126: 41600000000 | G126: 1.665865385e-11 | H126: 1.382464646e+11 | I126: 251081778.6 | J126: 251.0817786 | K126: 0.2510817786
B127: 0.12275 | C127: 0.12649 | D127: 0.893 | E127: 1.00418813 | F127: 41600000000 | G127: 1.665865385e-11 | H127: 1.382464646e+11 | I127: 250928870 | J127: 250.92887 | K127: 0.25092887
B128: 0.12766 | C128: 0.1424 | D128: 3.516 | E128: 1.004192264 | F128: 41600000000 | G128: 1.665865385e-11 | H128: 1.382464646e+11 | I128: 251176040.5 | J128: 251.1760405 | K128: 0.2511760405

Sheet Sheet1
A1: C0n02.6.1 | B1: 1.39 | C1: 52.8 | D1: 85.7 | E1: 0.782 | F1: 0.076 | G1: 12.3 | H1: 2.2 | I1: 20.5 | J1: 1.8 | K1: 16.1 | L1: 1.8 | M1: 49.9 | N1: 5.6
A2: C0n02.7.1 | B2: 0.075 | C2: 15.1 | D2: 12.7 | E2: 0.284 | F2: 0.021 | G2: 19.8 | H2: 2.6 | I2: 20.6 | J2: 1.2 | K2: 17.9 | L2: 2.5 | M2: 60.1 | N2: 7.4
A3: C0n02.7.2 | B3: 0.093 | C3: 23.3 | D3: 48.5 | E3: 0.106 | F3: 0.017 | G3: 11.9 | H3: 2 | I3: 17.9 | J3: 2.1 | K3: 17.2 | L3: 2.9 | M3: 40.3 | N3: 6.3
A4: C0n02.7.3 | B4: 0.536 | C4: 42.1 | D4: 33.2 | E4: 0.826 | F4: 0.062 | G4: 20.8 | H4: 2.7 | I4: 19.4 | J4: 2 | K4: 14.5 | L4: 2.2 | M4: 61 | N4: 6.8
A5: C0n02.7.4 | B5: 0.416 | C5: 31.5 | D5: 26.7 | E5: 0.807 | F5: 0.055 | G5: 20.4 | H5: 2.4 | I5: 19.2 | J5: 2.3 | K5: 14.7 | L5: 1.7 | M5: 58 | N5: 7.2
A6: C0n02.7.5 | B6: 0.27 | C6: 83.6 | D6: 166 | E6: 0.088 | F6: 0.0091 | G6: 11.5 | H6: 1.8 | I6: 18.4 | J6: 1.4 | K6: 14.4 | L6: 1.5 | M6: 44 | N6: 5.8
A7: C0n02.8.1 | B7: 0.123 | C7: 12.9 | D7: 18 | E7: 0.379 | F7: 0.027 | G7: 14.8 | H7: 2.1 | I7: 17.8 | J7: 1 | K7: 16.6 | L7: 2.7 | M7: 48.1 | N7: 5.3
A8: C0n02.9.1 | B8: 0.151 | C8: 53.8 | D8: 89.9 | E8: 0.092 | F8: 0.023 | G8: 12 | H8: l.6 | I8: 18.3 | J8: 2.6 | K8: 12.6 | L8: 2 | M8: 50.1 | N8: 4.9
A9: C0n02.9.2 | B9: 0.413 | C9: 57.2 | D9: 161 | E9: 0.132 | F9: 0.007 | G9: 7.9 | H9: 0.62 | I9: 19.3 | J9: 1.5 | K9: 14 | L9: 1.4 | M9: 45.1 | N9: 2.5
A10: C0n02.9.3 | B10: 0.302 | C10: 41.7 | D10: 497 | E10: 0.0345 | F10: 0.0054 | G10: 2.18 | H10: 0.4 | I10: 17.5 | J10: 1.6 | K10: 15.1 | L10: 1.8 | M10: 38.5 | N10: 3.2
A11: C0n02.9.4 | B11: 0.1 | C11: 24 | D11: 101 | E11: 0.0499 | F11: 0.0061 | G11: 6.74 | H11: 0.86 | I11: 19.7 | J11: 1.3 | K11: 15.7 | L11: 2.6 | M11: 35.2 | N11: 2.9
A12: C0n02.9.5 | B12: 0.116 | C12: 24.8 | D12: 188 | E12: 0.0337 | F12: 0.0044 | G12: 3.81 | H12: 0.53 | I12: 18.2 | J12: 1.2 | K12: 13.8 | L12: 2.5 | M12: 34.6 | N12: 2.6
A13: C0n02.9.8 | B13: 0.219 | C13: 47.3 | D13: 83.8 | E13: 0.132 | F13: 0.02 | G13: 12.8 | H13: 1.6 | I13: 19.6 | J13: 1.5 | K13: 16.1 | L13: 1.5 | M13: 44 | N13: 5.5
A14: C0n02.9.9 | B14: 0.255 | C14: 55.2 | D14: 78.6 | E14: 0.162 | F14: 0.018 | G14: 15.3 | H14: 1.9 | I14: 19.8 | J14: 1.8 | K14: 14.8 | L14: 2.7 | M14: 45.9 | N14: 4.6
A15: C0n02.10.1 | B15: 0.166 | C15: 28.8 | D15: 144 | E15: 0.064 | F15: 0.014 | G15: 6.07 | H15: 1.06 | I15: 17.8 | J15: 1.6 | K15: 16.1 | L15: 2.1 | M15: 32.9 | N15: 2.8
A18: BRYCE
A19: WRf | B19: 1.02 | C19: 0.005 | D19: 3.405 | E19: 0.015 | F19: 1.22054 | G19: 2e-05 | H19: 2.4725 | I19: 0.0001 | J19: 1.218 | K19: 2.4697 | L19: 0.93 | M19: 0.704186 | N19: 7e-06 | O19: 0.0988 | P19: 0.0005 | Q19: 295 | R19: 3.7
A20: WR | F20: 1.22063 | G20: 3e-05 | H20: 2.4724 | I20: 0.0001 | R20: —
A21: Mt-r1ch | B21: 0.805 | C21: 0.002 | D21: 2.629 | E21: 0.014 | F21: 1.22748 | G21: 9e-05 | H21: 2.4689 | I21: 0.0002 | J21: 1.2255 | K21: 2.4667 | L21: 0.83 | M21: 0.704151 | N21: 1.1e-05 | O21: 0.1635 | P21: 0.0011 | Q21: 226 | R21: —
A22: plag | B22: 0.105 | C22: 0 | D22: 0.205 | E22: 0 | F22: 1.21952 | G22: 3e-05 | H22: 2.468 | I22: 0.0001 | J22: 1.2193 | K22: 2.4679 | L22: 0.15 | M22: 0.703992 | N22: 1e-05 | O22: 0.0042 | P22: 0.0001 | Q22: 689 | R22: 4.1
A23: CRB-16
A24: WR | B24: 0.979 | C24: 0.002 | D24: 3.557 | E24: 0.034 | F24: 1.22212 | G24: 5e-05 | H24: 2.4733 | I24: 0.0001 | J24: 1.2197 | K24: 2.4704 | L24: 1.06 | M24: 0.704371 | N24: 1.1e-05 | O24: 0.1474 | P24: 0.0008 | Q24: 436 | R24: —
A25: WR | B25: 0.934 | C25: 0.007 | D25: 3.565 | E25: 0.033 | F25: 1.22205 | G25: 9e-05 | H25: 2.4728 | I25: 0.0004 | J25: 1.2197 | K25: 2.4699 | L25: 1.02 | R25: —
A26: WR | F26: 1.22179 | G26: 8e-05 | H26: 2.4717 | I26: 0.0003 | L26: 1.02 | R26: —
A27: Mt-r1ch | B27: 0.908 | C27: 0.004 | D27: 3.453 | E27: 0.024 | F27: 1.22302 | G27: 4e-05 | H27: 2.4731 | I27: 0.0002 | J27: 1.2208 | K27: 2.4703 | L27: 1 | R27: —
A28: Mt-r1ch | B28: 0.935 | C28: 0.004 | D28: 3.449 | E28: 0.019 | F28: 1.22304 | G28: 2e-05 | H28: 2.4727 | I28: 0.0001 | J28: 1.2207 | K28: 2.4699 | L28: 1.05 | M28: 0.704354 | N28: 1.1e-05 | O28: 0.2036 | P28: 0.0007 | Q28: 118 | R28: —
A29: Mt-r1ch | B29: 1.095 | C29: 0.001 | D29: 3.551 | E29: 0.002 | F29: 1.22073 | G29: 4e-05 | H29: 2.4711 | I29: 0.0001 | J29: 1.218 | K29: 2.4682 | L29: 0.49 | M29: 0.704432 | N29: 1.1e-05 | O29: 0.201 | P29: 0.0006 | Q29: 306 | R29: —
A30: plag | B30: 0.13 | C30: 0.001 | D30: 0.274 | E30: 0 | F30: 1.21446 | G30: 1e-05 | H30: 2.4635 | I30: 0 | J30: 1.2141 | K30: 2.4632 | L30: 0.18 | M30: 0.703981 | N30: 8e-06 | O30: 0.0067 | P30: 0.0001 | Q30: 1027 | R30: 0.6
A31: Wrh | M31: 0.704392 | N31: 1e-05 | O31: 0.1395 | Q31: 259 | R31: 3.1
A32: Mt-r1ch | M32: 0.704384 | N32: 1e-05 | O32: 0.155 | Q32: 217 | R32: 3.2
A33: WR | B33: 0.661 | C33: 0.003 | D33: 1.357 | E33: 0.001 | F33: 1.19186 | G33: 3e-05 | H33: 2.4428 | I33: 0.0001 | L33: 0.283 | M33: 0.702555 | N33: 1e-05 | O33: 0.0206 | P33: 0.0001 | Q33: 124 | R33: —
A34: WR1 | F34: 1.19275 | G34: 3e-05 | H34: 2.444 | I34: 0.0001 | M34: 0.702497 | N34: 1e-05 | R34: —
A35: Mt-r1ch | B35: 0.493 | C35: 0.002 | D35: 1.159 | E35: 0.016 | F35: 1.20147 | G35: 2e-05 | H35: 2.4456 | I35: 0.0001 | L35: 0.399 | M35: 0.702572 | N35: 1e-05 | O35: 0.0298 | P35: 0.0001 | Q35: 155 | R35: —
A36: plag | B36: 0.091 | C36: 0 | D36: 0.125 | E36: 0 | F36: 1.18453 | G36: 4e-05 | H36: 2.4373 | I36: 0.0002 | L36: 0.045 | M36: 0.70238 | N36: 1e-05 | O36: 0.0017 | P36: 0.0001 | Q36: 203 | R36: —
A37: Wrh | M37: 0.702397 | N37: 8e-06 | O37: 0.0139 | R37: 10
A38: 5 | B38: dV1-Mt. | C38: Etna
A39: MAG | B39: 1.601 | C39: 0.008 | D39: 6.793 | E39: 0.034 | F39: 1.24229 | G39: 0.00019 | H39: 2.4993 | I39: 0.0004 | J39: 1.2422 | K39: 2.4992 | L39: 0.203 | M39: 0.703178 | N39: 5e-06 | R39: —
A40: mag | B40: 1.895 | C40: 0.009 | D40: 8.223 | E40: 0.041 | F40: 1.24678 | G40: 3e-05 | H40: 2.503 | I40: 0.0001 | J40: 1.2467 | K40: 2.5028 | L40: 0.174 | M40: 0.703201 | N40: 5e-06 | R40: —
A41: wkly | B41: 1.361 | C41: 0.007 | D41: 5.948 | E41: 0.03 | F41: 1.23987 | G41: 0.00015 | H41: 2.4962 | I41: 0.0006 | J41: 1.2398 | K41: 2.4962 | L41: 0.171 | R41: —
A42: wkly | B42: 1.473 | C42: 0.007 | D42: 6.314 | E42: 0.032 | F42: 1.24361 | G42: 8e-05 | H42: 2.5004 | I42: 0.0003 | J42: 1.2435 | K42: 2.5003 | L42: 0.164 | M42: 0.703184 | N42: 4e-06 | R42: —
A43: Plag | B43: 0.221 | C43: 0.001 | D43: 0.996 | E43: 0.005 | F43: 1.2019 | G43: 9e-05 | H43: 2.4653 | I43: 0.0003 | J43: 1.2019 | K43: 2.4653 | L43: 0.821 | M43: 0.703208 | N43: 6e-06 | R43: —
A44: n0nmagn | F44: 1.2118 | G44: 0.0001 | H44: 2.4784 | I44: 0.0007 | R44: —
A45: cru5 | B45: hed | F45: 1.2514 | G45: 0.00017 | H45: 2.5062 | I45: 0.001 | S45: —
A48: Canadian_Mineralogist
A49: l | B49: 114 | C49: 0.4502 | D49: 0.1298 | E49: 0.74 | F49: 3.9671 | G49: 0.0577 | H49: 0.2862 | I49: 0.0043 | J49: 0.1005 | K49: 0.0014 | L49: 1627 | M49: 12 | N49: 1623 | O49: 21 | P49: 1634 | Q49: 14 | R49: 99
A50: l-1b | B50: 94 | C50: 0.3381 | D50: 0.0975 | E50: 0.77 | F50: 4.0715 | G50: 0.0728 | H50: 0.2886 | I50: 0.0041 | J50: 0.1023 | K50: 0.0018 | L50: 1649 | M50: 15 | N50: 1635 | O50: 20 | P50: 1667 | Q50: 17 | R50: 98
A51: 1-2a | B51: 349 | C51: 0.255 | D51: 0.0729 | E51: 0.24 | F51: 3.8293 | G51: 0.0652 | H51: 0.2733 | I51: 0.004 | J51: 0.1016 | K51: 0.001 | L51: 1599 | M51: 14 | N51: 1557 | O51: 20 | P51: 1654 | Q51: 10 | R51: 94
A52: 1-2b | B52: 62 | C52: 0.3915 | D52: 0.1129 | E52: 2.12 | F52: 4.2519 | G52: 0.1268 | H52: 0.3035 | I52: 0.0064 | J52: 0.1016 | K52: 0.0035 | L52: 1684 | M52: 25 | N52: 1708 | O52: 31 | P52: 1654 | Q52: 32 | R52: 103
A53: 1·3 | B53: 153 | C53: 0.1722 | D53: 0.049 | E53: 2.07 | F53: 2.3276 | G53: 0.1014 | H53: 0.1329 | I53: 0.0047 | J53: 0.127 | K53: 0.0001 | L53: 1421 | M53: 31 | N53: 304 | O53: 27 | P53: 2051 | Q53: 43 | R53: 39
A54: 2013-04-01 | B54: 4721 | C54: 0.4202 | D54: 0.1212 | E54: 1.7 | F54: 0.6616 | G54: 0.0111 | H54: 0.0729 | I54: 0.0011 | J54: 0.0658 | K54: 0.0006 | L54: 516 | M54: 7 | N54: 454 | O54: 7 | P54: 801 | Q54: 10 | R54: 57
A55: 2013-05-01 | B55: 113 | C55: 0.2195 | D55: 0.064 | E55: 0.31 | F55: 4.1117 | G55: 0.06 | H55: 0.2797 | I55: 0.0046 | J55: 0.1068 | K55: 0.0015 | L55: 1658 | M55: 12 | N55: 1590 | O55: 23 | P55: 1745 | Q55: 13 | R55: 91
A56: 1-6a | B56: 145 | C56: 0.238 | D56: 0.0694 | E56: 1.11 | F56: 0.4928 | G56: 0.0286 | H56: 0.059 | I56: 0.002 | J56: 0.0606 | K56: 0.0029 | L56: 407 | M56: 19 | N56: 369 | O56: 12 | P56: 625 | Q56: 56 | R56: 59
A57: 1-6b | B57: 195 | C57: 0.2417 | D57: 0.0722 | E57: 0.13 | F57: 4.0792 | G57: 0.0629 | H57: 0.279 | I57: 0.0047 | J57: 0.106 | K57: 0.0014 | L57: 1650 | M57: 13 | N57: 1586 | O57: 24 | P57: 1732 | Q57: 13 | R57: 92
A58: 2013-07-01 | B58: 409 | C58: 0.1537 | D58: 0.0448 | E58: 1.8 | F58: 2.4961 | G58: 0.0888 | H58: 0.1812 | I58: 0.0001 | J58: 0.0967 | K58: 0.002 | L58: 1271 | M58: 26 | N58: 1106 | O58: 33 | P58: 1562 | Q58: 20 | R58: 11
A59: 1·8a | B59: 216 | C59: 0.2551 | D59: 0.0738 | E59: 0.71 | F59: 4.5203 | G59: 0.0385 | H59: 0.2977 | I59: 0.0022 | J59: 0.1101 | K59: 0.001 | L59: 1735 | M59: 7 | N59: 1680 | O59: 11 | P59: 1802 | Q59: 8 | R59: 93
A60: 1·8b | B60: 192 | C60: 0.2639 | D60: 0.0763 | E60: 1.22 | F60: 4.4851 | G60: 0.059 | H60: 0.3031 | I60: 0.0031 | J60: 0.1073 | K60: 0.0013 | L60: 1128 | M60: 11 | N60: 1101 | O60: 15 | P60: 1754 | Q60: 12 | R60: 97
A61: 1·9 | B61: 737 | C61: 0.4179 | D61: 0.1209 | E61: 0.9 | F61: 1.5648 | G61: 0.0535 | H61: 0.1304 | I61: 0.004 | J61: 0.0871 | K61: 0.0012 | L61: 956 | M61: 21 | N61: 790 | O61: 23 | P61: 1362 | Q61: 13 | R61: 58
A62: 1-10a | B62: 198 | C62: 0.1112 | D62: 0.0495 | E62: 0.24 | F62: 4.2098 | G62: 0.045 | H62: 0.2896 | I62: 0.0033 | J62: 0.1054 | K62: 0.0013 | L62: 1676 | M62: 9 | N62: 1640 | O62: 17 | P62: 1722 | Q62: 12 | R62: 95
A63: 1-10b | B63: 114 | C63: 0.35 | D63: 0.1012 | E63: 0.89 | F63: 3.1245 | G63: 0.0599 | H63: 0.2671 | I63: 0.004 | J63: 0.1011 | K63: 0.0016 | L63: 1517 | M63: 13 | N63: 1526 | O63: 20 | P63: 1645 | Q63: 15 | R63: 93
A64: l- | B64: 274 | C64: 0.2339 | D64: 0.0676 | E64: 5.62 | F64: 3.2432 | G64: 0.1657 | H64: 0.2365 | I64: 0.0051 | J64: 0.0995 | K64: 0.0033 | L64: 1468 | M64: 40 | N64: 1368 | O64: 27 | P64: 1614 | Q64: 32 | R64: 85
A65: l- | B65: 191 | C65: 0.2189 | D65: 0.0633 | E65: 0.39 | F65: 4.1622 | G65: 0.0649 | H65: 0.2959 | I65: 0.004 | J65: 0.102 | K65: 0.0015 | L65: 1667 | M65: 13 | N65: 1671 | O65: 20 | P65: 1661 | Q65: 14 | R65: 101
A66: 1·12 | B66: 329 | C66: 0.3111 | D66: 0.09 | E66: 0.2 | F66: 4.2192 | G66: 0.0686 | H66: 0.2961 | I66: 0.0042 | J66: 0.1033 | K66: 0.0011 | L66: 1678 | M66: 13 | N66: 1612 | O66: 21 | P66: 1685 | Q66: 10 | R66: 99
A67: 1 | B67: 229 | C67: 0.3306 | D67: 0.0956 | E67: 2.59 | F67: 4.671 | G67: 0.0849 | H67: 0.3102 | I67: 0.0043 | J67: 0.1092 | K67: 0.0018 | L67: 1762 | M67: 15 | N67: 1742 | O67: 21 | P67: 1786 | Q67: 15 | R67: 97
A68: 1-14a | B68: 177 | C68: 0.4839 | D68: 0.1399 | E68: 2.6 | F68: 5.0393 | G68: 0.1456 | H68: 0.3293 | I68: 0.0039 | J68: 0.111 | K68: 0.0029 | L68: 1826 | M68: 24 | N68: 1835 | O68: 19 | P68: 1816 | Q68: 24 | R68: 101
A69: 1-14b | B69: 128 | C69: 0.3731 | D69: 0.1076 | E69: 0.9 | F69: 4.0341 | G69: 0.2428 | H69: 0.291 | I69: 0.0056 | J69: 0.1005 | K69: 0.0043 | L69: 1641 | M69: 49 | N69: 1647 | O69: 28 | P69: 1634 | Q69: 40 | R69: 101
A70: l-15 | B70: 160 | C70: 0.3276 | D70: 0.0987 | E70: 0.12 | F70: 3.997 | G70: 0.2405 | H70: 0.291 | I70: 0.0056 | J70: 0.0996 | K70: 0.0043 | L70: 1634 | M70: 49 | N70: 1647 | O70: 28 | P70: 1617 | Q70: 41 | R70: 102
A71: 2016-01-01 | B71: 78 | C71: 0.2899 | D71: 0.0838 | E71: 8.24 | F71: 4.0876 | G71: 0.102 | H71: 0.2912 | I71: 0.0056 | J71: 0.1018 | K71: 0.0027 | L71: 1652 | M71: 20 | N71: 1647 | O71: 28 | P71: 1657 | Q71: 26 | R71: 99
A72: 2017-01-01 | B72: 57 | C72: 0.0347 | D72: 0.01 | E72: 8.95 | F72: 4.4155 | G72: 0.1065 | H72: 0.2876 | I72: 0.0055 | J72: 0.1114 | K72: 0.003 | L72: 1715 | M72: 20 | N72: 1629 | O72: 27 | P72: 1822 | Q72: 24 | R72: 89
A73: 1-18a | B73: 978 | C73: 0.1565 | D73: 0.0457 | E73: 1.44 | F73: 4.0543 | G73: 0.1028 | H73: 0.2893 | I73: 0.0061 | J73: 0.1016 | K73: 0.0014 | L73: 1645 | M73: 21 | N73: 1638 | O73: 30 | P73: 1654 | Q73: 13 | R73: 99
A74: 1-19a | B74: 950 | C74: 0.2527 | D74: 0.0731 | E74: 2.45 | F74: 3.2347 | G74: 0.0865 | H74: 0.2291 | I74: 0.0065 | J74: 0.1024 | K74: 0.0026 | L74: 1466 | M74: 21 | N74: 1330 | O74: 34 | P74: 1668 | Q74: 24 | R74: 80
A75: 2020-01-01 | B75: 1255 | C75: 0.228 | D75: 0.0659 | E75: 2.05 | F75: 2.2016 | G75: 0.0448 | H75: 0.1113 | I75: 0.0027 | J75: 0.0932 | K75: 0.0012 | L75: 1182 | M75: 14 | N75: 1019 | O75: 15 | P75: 1493 | Q75: 12 | R75: 68
A76: 2021-01-01 | B76: 4096 | C76: 0.2991 | D76: 0.0865 | E76: 3.56 | F76: 1.0268 | G76: 0.0487 | H76: 0.1126 | I76: 0.0021 | J76: 0.0662 | K76: 0.0023 | L76: 717 | M76: 24 | N76: 688 | O76: 12 | P76: 811 | Q76: 37 | R76: 85
A77: 2022-01-01 | B77: 398 | C77: 0.3091 | D77: 0.0894 | E77: 0.27 | F77: 4.107 | G77: 0.0652 | H77: 0.2931 | I77: 0.004 | J77: 0.1016 | K77: 0.0012 | L77: 1656 | M77: 13 | N77: 1657 | O77: 20 | P77: 1654 | Q77: 12 | R77: 100
A78: 1·23 | B78: 345 | C78: 0.2194 | D78: 0.0631 | E78: 0.49 | F78: 4.074 | G78: 0.0633 | H78: 0.2892 | I78: 0.0032 | J78: 0.1022 | K78: 0.0012 | L78: 1649 | M78: 13 | N78: 1638 | O78: 16 | P78: 1664 | Q78: 11 | R78: 98
A79: 2024-01-01 | B79: 400 | C79: 0.2428 | D79: 0.0702 | E79: 0.49 | F79: 4.1847 | G79: 0.0495 | H79: 0.2957 | I79: 0.0032 | J79: 0.1026 | K79: 0.0009 | L79: 1671 | M79: 10 | N79: 1670 | O79: 16 | P79: 1672 | Q79: 9 | R79: 100
A80: 2025-01-01 | B80: 179 | C80: 0.4327 | D80: 0.1251 | E80: 0.92 | F80: 5.1604 | G80: 0.1519 | H80: 0.3294 | I80: 0.004 | J80: 0.1136 | K80: 0.003 | L80: 1846 | M80: 25 | N80: 1836 | O80: 19 | P80: 1858 | Q80: 24 | R80: 99
A81: 2026-01-01 | B81: 255 | C81: 0.308 | D81: 0.0891 | E81: 2.98 | F81: 4.7267 | G81: 0.1366 | H81: 0.3164 | I81: 0.0038 | J81: 0.1084 | K81: 0.0028 | L81: 1172 | M81: 24 | N81: 1772 | O81: 15 | P81: 1772 | Q81: 24 | R81: 100
A82: 2027-01-01 | B82: 535 | C82: 0.2822 | D82: 0.0816 | E82: 4.39 | F82: 1.8291 | G82: 0.0487 | H82: 0.1622 | I82: 0.0063 | J82: 0.0818 | K82: 0.0027 | L82: 1056 | M82: 17 | N82: 969 | O82: 35 | P82: 1241 | Q82: 32 | R82: 78
A83: 1-28a | B83: 432 | C83: 0.2595 | D83: 0.075 | E83: 0.16 | F83: 4.014 | G83: 0.0495 | H83: 0.2902 | I83: 0.0034 | J83: 0.1003 | K83: 0.0011 | L83: 1637 | M83: 10 | N83: 1642 | O83: 17 | P83: 1630 | Q83: 12 | R83: 101
A84: 1·28b | B84: 371 | C84: 0.3125 | D84: 0.0904 | E84: 0.52 | F84: 4.0799 | G84: 0.0552 | H84: 0.2904 | I84: 0.0032 | J84: 0.1019 | K84: 0.0013 | L84: 1650 | M84: 11 | N84: 1644 | O84: 16 | P84: 1659 | Q84: 12 | R84: 99
A85: 1-J0a | B85: 267 | C85: 0.2343 | D85: 0.0678 | E85: 0.08 | F85: 4.1843 | G85: 0.0671 | H85: 0.2978 | I85: 0.0035 | J85: 0.1019 | K85: 0.0013 | L85: 1671 | M85: 13 | N85: 1681 | O85: 17 | P85: 1659 | Q85: 12 | R85: 101
A86: 1·30b | B86: 269 | C86: 0.177 | D86: 0.0512 | E86: 0.46 | F86: 4.3328 | G86: 0.0509 | H86: 0.3087 | I86: 0.0031 | J86: 0.1018 | K86: 0.0011 | L86: 1700 | M86: 10 | N86: 1734 | O86: 15 | P86: 1657 | Q86: 10 | R86: 105
A87: 1931-01-01 | B87: 345 | C87: 0.2879 | D87: 0.0833 | E87: 0.13 | F87: 4.043 | G87: 0.0646 | H87: 0.2888 | I87: 0.0033 | J87: 0.1015 | K87: 0.0019 | L87: 1643 | M87: 13 | N87: 1636 | O87: 16 | P87: 1652 | Q87: 18 | R87: 99
A88: 1932-01-01 | B88: 421 | C88: 0.217 | D88: 0.0627 | E88: 1.42 | F88: 3.9441 | G88: 0.0657 | H88: 0.2864 | I88: 0.0052 | J88: 0.0999 | K88: 0.0014 | L88: 1623 | M88: 13 | N88: 1624 | O88: 26 | P88: 1622 | Q88: 14 | R88: 100
A89: 2-18b | B89: 234 | C89: 0.2325 | D89: 0.0672 | E89: 0.24 | F89: 4.4516 | G89: 0.0697 | H89: 0.2965 | I89: 0.0033 | J89: 0.1089 | K89: 0.0015 | L89: 1122 | M89: 13 | N89: 1674 | O89: 16 | P89: 1781 | Q89: 13 | R89: 94
A90: 2·33 | B90: 244 | C90: 0.1689 | D90: 0.0488 | E90: 0.02 | F90: 3.9728 | G90: 0.0472 | H90: 0.2879 | I90: 0.003 | J90: 0.1001 | K90: 0.0011 | L90: 1629 | M90: 10 | N90: 1631 | O90: 15 | P90: 1625 | Q90: 10 | R90: 100
A91: 1934-02-01 | B91: 298 | C91: 0.2554 | D91: 0.0738 | E91: 0.11 | F91: 4.078 | G91: 0.059 | H91: 0.2915 | I91: 0.0034 | J91: 0.1015 | K91: 0.00n | L91: 1650 | M91: 12 | N91: 1649 | O91: 17 | P91: 1651 | Q91: 12 | R91: 100
A92: 2-19b | B92: 76 | C92: 0.0269 | D92: 0.0078 | E92: 9.11 | F92: 4.9741 | G92: 0.12 | H92: 0.3295 | I92: 0.0003 | J92: 0.1095 | K92: 0.0029 | L92: 1815 | M92: 20 | N92: 1836 | O92: 30 | P92: 1791 | Q92: 24 | R92: 103
A93: 1935-02-01 | B93: 225 | C93: 0.1764 | D93: 0.0514 | E93: 1.8 | F93: 4.1199 | G93: 0.1044 | H93: 0.2947 | I93: 0.0062 | J93: 0.1014 | K93: 0.0014 | L93: 1658 | M93: 21 | N93: 1665 | O93: 31 | P93: 1650 | Q93: 13 | R93: 101
A94: 2-6c | B94: 223 | C94: 0.2317 | D94: 0.0667 | E94: 0.42 | F94: 4.1217 | G94: 0.064 | H94: 0.2924 | I94: 0.0033 | J94: 0.1022 | K94: 0.0012 | L94: 1659 | M94: 13 | N94: 1654 | O94: 16 | P94: 1665 | Q94: 11 | R94: 99
